{"text_format":"1","workbook":"xlsx","n_sheets":9,"sheets":["Prompt","C100","C200","C300","C316","C400","C700","C800","Enviar"],"not_rendered":{"charts":0,"images":6,"macros":1,"external_links":0,"defined_names":2,"comments":0,"pivot_tables":0},"unopened":[],"bounds":{"document_bytes":16777216,"sheet_cells":100000,"rows_first":2000,"rows_last":500,"rows_between":2000,"halvings":0,"cell_chars":16384,"cell_head_chars":4096},"cells_cut":0,"cells_raw":0,"read":"whole","date_system":"1900"}

{"sheet":"Prompt","index":0,"n_rows":79,"n_cols":4,"rows_kept":79,"cut":false,"hidden":true,"merged":[[1,3,2,6],[4,1,6,8],[43,1,44,8],[78,1,79,8],[9,1,10,8]]}
[]
[null,null,null,"¡ATENCIÓN!"]
[]
[]
[null,"Para hacer uso de las funcionalidades de esta Cédula Electrónica debe habilitar macros"]
[]
[]
[]
[]
[null,"Si utiliza Excel 2013 siga el siguiente procedimiento:"]
[]
[]
[]
[]
[]
[]
[]
[]
[]
[]
[]
[]
[]
[]
[]
[]
[]
[]
[]
[]
[]
[]
[]
[]
[]
[]
[]
[]
[]
[]
[]
[]
[]
[null,"Si utiliza Excel 2007 siga el siguiente procedimiento:"]
[]
[]
[]
[]
[]
[]
[]
[]
[]
[]
[]
[]
[]
[]
[]
[]
[]
[]
[]
[]
[]
[]
[]
[]
[]
[]
[]
[]
[]
[]
[]
[]
[]
[]
[null,"Si utiliza Excel 2000, 2002, 2003 siga el siguiente procedimiento:"]

{"sheet":"C100","index":1,"n_rows":476,"n_cols":23,"rows_kept":476,"cut":false,"hidden":false,"merged":[[313,17,313,21],[209,6,209,10],[118,5,118,7],[112,10,112,11],[113,10,113,11],[114,10,114,11],[115,10,115,11],[116,10,116,11],[117,10,117,11],[165,9,165,10],[166,9,166,10],[238,6,238,10],[124,3,125,6],[124,10,124,11],[125,10,125,11],[162,7,162,8],[124,9,125,9],[124,8,125,8],[96,6,96,8],[96,9,96,11],[118,10,118,11],[112,3,112,6],[86,6,86,8],[65,8,65,9],[324,17,324,21],[131,10,131,11],[131,5,131,7],[119,19,119,22],[130,19,130,22],[198,8,198,11],[178,17,178,20],[126,10,126,11],[127,10,127,11],[128,10,128,11],[129,10,129,11],[130,10,130,11],[182,8,182,11],[233,17,233,21],[16,18,16,22],[12,6,12,8],[12,20,12,22],[76,22,77,22],[54,10,54,11],[30,19,30,20],[28,20,28,22],[68,15,69,21],[36,19,36,20],[63,8,63,9],[62,7,62,9],[62,10,62,11],[61,7,61,11],[64,8,64,9],[72,22,73,22],[16,6,16,11],[1,6,1,19],[2,6,2,19],[3,6,3,19],[14,6,14,22],[2,21,4,23],[31,19,31,20],[92,18,92,22],[72,15,73,21],[76,15,77,21],[57,10,57,11],[80,15,81,21],[80,22,81,22],[82,17,82,21],[86,9,86,11],[68,22,69,22],[33,20,33,22],[66,15,66,21],[252,6,252,10],[194,22,196,22],[194,14,194,19],[195,14,195,19],[196,14,196,19],[202,16,202,19],[216,17,216,20],[268,20,268,21],[260,14,262,22],[272,6,272,10],[263,4,263,9],[291,20,291,22],[280,20,280,22],[284,2,284,12],[290,2,290,12],[269,18,271,22]]}
[]
[null,null,null,null,null,null,"CENSO EDUCATIVO 2022"]
[null,null,null,null,null,null,"EDUCACIÓN BÁSICA REGULAR",null,null,null,null,null,null,null,null,null,null,null,null,null,null,"2A"]
[null,null,null,null,null,null,"INICIAL NO ESCOLARIZADA"]
[null,null,"Version:","1 - (32 y 64 bits)"]
[null,null,"INSTRUCCIONES DEL FORMATO ELECTRÓNICO "]
[]
[]
[]
[null,null,"IDENTIFICACIÓN DEL PROGRAMA EDUCATIVO"]
[null,null,"La fuente de estos datos debe ser la RD de Creación/Renovación del PRONOIE, según lo establecido por la RVM Nº 036-2015-ED"]
[]
[null,null,"1. CÓDIGO MODULAR :",null,null,null,null,null,null,null,null,null,null,null,"2. D.N.I. DE PROFESOR(A) COORDINADOR(A):"]
[]
[null,null,"3. NOMBRE DEL PRONOEI :"]
[]
[null,null,"4. DISTRITO :",null,null,null,null,null,null,null,null,null,null,null,null,null,null,"5. LOCALIDAD / CENTRO POBLADO :"]
[]
[]
[null,null,"6.  ENTIDAD GESTORA",null,null,null,null," (Marcar con \"X\" según corresponda)",null,null,null,null,null,"8. TIPO DE PROGRAMA NO ESCOLARIZADO, SEGÚN CICLO:"]
[]
[null,null,null,null,"1 - Sector Educación",null,null,null,null,null,null,null,null,null,"Ciclo I:",null,{"$f":"CONCATENATE(R22,R23,R24)","v":""},null,"1 - Entorno Familiar"]
[null,null,null,null,"2 - Otro Sector Público o FF.AA.",null,null,null,null,null,null,null,null,null,null,null,null,null,"2 - Entorno Comunitario"]
[null,null,null,null,"3 - Municipalidad",null,null,null,null,null,null,null,null,null,null,null,null,null,"3- Salas de Educación Temprana (SET)"]
[null,null,null,null,"4 - Comunidad o Asoc. Religiosa - Católica Parroquial"]
[null,null,null,null,"5 - Otra Congregación / Asoc. Religiosa",null,null,null,null,null,null,null,null,null,"Ciclo II:",null,{"$f":"CONCATENATE(R26,R27)","v":""},null,"4 - Entorno Familiar"]
[null,null,null,null,"6 - Comunidad (comunal)",null,null,null,null,null,null,null,null,null,null,null,null,null,"5 - Entorno Comunitario"]
[null,null,null,null,"7 - Inst. Bénefica / Asociación Civil"]
[null,null,null,null,null,null,null,null,null,null,null,null,null,"9.  R.D. DE CREACIÓN",null,null,null,null,"Número R.D."]
[]
[null,null,"7.  FINANCIAMIENTO",null,null,null,null," (Puede marcar más de una opción)",null,null,null,null,null,null,null,null,null,"Día",null,"Mes",null,null,"Año"]
[null,null,null,null,null,null,null,null,null,null,null,null,null,null,"Fecha :",null,null,null,"-",null,null,"-"]
[null,null,null,null," 1 - Sector Educación"]
[null,null,null,null," 2 - Otro Sector Público o FF.AA.",null,null,null,null,null,null,null,null,"10.  R.D. DE RENOVACIÓN",null,null,null,null,"Número R.D."]
[null,null,null,null," 3 - Municipalidad"]
[null,null,null,null," 4 - Otra fuente privada",null,null,null,null,null,null,null,null,null,null,null,null,"Día",null,"Mes",null,null,"Año"]
[null,null,null,null,null,null,null,null,null,null,null,null,null,null,"Fecha :",null,null,null,"-",null,null,"-"]
[]
[]
[]
[]
[]
[]
[]
[]
[]
[null,null,"Esta Institución Educativa es de Gestión : ",null,null,null,null,null,null,null," 1 - Pública de gestión directa",null,null,null,null,null," 2 - Pública de gestión privada",null,null,null,"X"," 3 - Privada"]
[]
[]
[null,null,"100. CARACTERÍSTICAS DEL SERVICIO EDUCATIVO (Para PRONOEI Públicos y Privados)"]
[]
[null,null,"A. CARACTERÍSTICA DE LA ENSEÑANZA"]
[null,null,"101. CON RESPECTO A LAS CLASES:",null,null,null,null,null,null,null,null,null,null,"107. EN EL PROCESO DE MATRÍCULA DEL PERIODO 2022, LOS PADRES DE FAMILIA, "]
[null,null,null,"A. ¿CUANDO INICIARON LAS CLASES?",null,null,null,null,"Día",null,"Mes",null,null,"CUIDADORES(AS) O APODERADOS(AS) QUE SE PRESENTARON Y SOLICITARON "]
[null,null,null,"(Primer día en que asistieron)",null,null,null,null,null,"-",null,null,null,"UNA O MÁS VACANTES EN ESTE PRONOEI, ¿LOGRARON OBTENER EL TOTAL"]
[null,null,null,null,null,null,null,null,null,null,null,null,null,"DE VACANTES SOLICITADAS?"]
[null,null,null,"B. ¿CUANDO TERMINARÁN LAS CLASES?",null,null,null,null,"Día",null,"Mes",null,null,null,"Sí",null,null,"Pase a la pregunta 109."]
[null,null,null,"(Último día en que asistirán)",null,null,null,null,null,"-"]
[null,null,null,null,null,null,null,null,null,null,null,null,null,null," No  ",null,null,"¿Por qué no lograron una o más vacante(s)?"]
[null,null,"102. HORARIO DE CLASES DE LAS/LOS ESTUDIANTES:",null,null,null,null,null,null,null,null,null,null,null,null,null,null,null,"No hay capacidad para recibirlos"]
[null,null,null,null,null,null,null,null,null,null,null,null,null,null,null,null,null,null,"Hay capacidad, pero existen aulas con mucho riesgo"]
[null,null,null,null,null,null,null,"Horario de clases",null,null,null,null,null,null,null,null,null,null,"Prefiero tener una carga docente baja"]
[null,null,null,null,null,"TURNO",null,"Inicio",null,null,"Termino"]
[null,null,null,null,null,null,{"$f":"G65+G66","v":0},"Horas","Minutos",null,"Horas","Minutos",null,"108. ¿QUÉ CRITERIOS DE PRIORIZACIÓN TUVIERON EN CUENTA PARA LA MATRÍCULA"]
[null,null,null,null,"01","Mañana",{"$f":"SUM(H65:L65)","v":0},null,null,null,null,null,null,"DE LOS ESTUDIANTES QUE SOLICITARON UNA VACANTE EN ESTE PRONOEI?"]
[null,null,null,null,"02","Tarde",{"$f":"SUM(H66:L66)","v":0}]
[null,null,null,null,null,null,null,null,null,null,null,null,null,null,"NRO.","CRITERIOS",null,null,null,null,null,null," SI - NO"]
[null,null,null,null,null,null,null,null,null,null,null,null,null,null,1,"Cercanía del lugar de residencia del estudiante a la I.E."]
[null,null,"103. EN EL PRESENTE AÑO, ¿BAJO QUÉ MODALIDAD SE REALIZAN LAS CLASES",null,null,null,null,null,null,null,null,null,null,null,2,"Cercanía del trabajo de los padres o apoderados del estudiante a la I.E."]
[null,null,"EN ESTE PRONOEI?"]
[null,null,null,null,null,null,null,null,null,null,null,null,null,null,3,"Hermanos (as) estudiando en la misma I.E."]
[null,null,null,null,"Presencial",null,null,"Semi presencial",null,null,"Virtual / A distancia",null,null,null,4,"Hijos (as) de ex alumnos (as)"]
[null,null,null,null,null,null,null,null,null,null,null,null,null,null,5,"Niños (as) con Necesidades Educativas Especiales (NEE) asociadas a discapacidad"]
[]
[null,null,"104. SOLO, SI LAS CLASES EMPEZARON EN UNA FECHA POSTERIOR A LA ",null,null,null,null,null,null,null,null,null,null,null,6,"Estado civil de los padres"]
[null,null,"PROGRAMADA, INDIQUE EL MOTIVO",null,null,null,null,null,null,null,null,null,null,null,7,"Record de rendimiento académico del estudiante"]
[null,null,null,null,null,null,null,null,null,null,null,null,null,null,8,"Documentos que sustenten solvencia económica de los padres o apoderados"]
[null,null,null,null,"  1 - Dificultad para la identificación del Promotor Educativo Comunitario (a)."]
[null,null,null,null,"  2 - No se contó con financiamiento oportuno.",null,null,null,null,null,null,null,null,null,9,"Orden de llegada de los doc. de inscripción del estudiante"]
[null,null,null,null,"  3 - No se contó con las condiciones para el funcionamiento del PRONOEI.",null,null,null,null,null,null,null,null,null,10,"Que los estudiantes cuenten con documento de identidad"]
[null,null,null,null,"  4 - Fenómeno Climatológico / Desastre natural.",null,null,null,null,null,null,null,null,null,11,"Que el estudiante haya rendido una evaluación de ingreso previa a la matrícula"]
[]
[null,null,null,null,null,null,null,null,null,null,null,null,null,null,12,"Otros"]
[null,null,"105. EN ESTE PRONOEI, ¿CUANTAS VACANTES POR EDAD SEGÚN TURNO OFRECIÓ ",null,null,null,null,null,null,null,null,null,null,null,null,null,null,null,null,null,null,null,{"$f":"COUNTIF(W68:W83,\"SI\") + COUNTIF(W68:W83,\"NO\")","v":0}]
[null,null,"PARA EL PRESENTE PERIODO LECTIVO?",null,null,null,null,null,null,null,null,null,null,"109. EN LOS ÚLTIMOS TRES MESES, ¿QUÉ SERVICIOS SE OFRECIERON EN ESTE PRONOEI?"]
[]
[null,null,null,null,null,null,"Ciclo I",null,null,"Ciclo II",null,null,null,null,null,"Qali Warma"]
[null,null,null,"EDADES",null,null,0,1,2,3,4,"5 y +",null,null,null,"Vacunación"]
[null,null,null,"Turno mañana",null,null,null,null,null,null,null,null,null,null,null,"Control de Crecimiento y Desarrollo"]
[null,null,null,null,null,null,null,null,null,null,null,null,null,null,null,"SAANEE"]
[null,null,null,"Turno tarde",null,null,null,null,null,null,null,null,null,null,null,"PRITE"]
[null,null,null,null,null,null,null,null,null,null,null,null,null,null,null,"Servicio de Apoyo Educativo Virtual (SAEV)"]
[null,null,null,null,null,null,null,null,null,null,null,null,null,null,null,"Otro especificar"]
[null,null,"106. EN ESTE PRONOEI, ¿CUANTOS POSTULANTES POR EDAD SEGÚN TURNO SE",null,null,null,null,null,null,null,null,null,null,null,null,"Ninguno"]
[null,null,"PRESENTARON PARA EL PRESENTE PERIODO LECTIVO?"]
[null,null,null,null,null,null,null,null,null,null,null,null,null,"110. EL PRONOEI, ¿CUENTA CON UN PLAN APROBADO DE LUCHA CONTRA LA ANEMIA?"]
[null,null,null,null,null,null,"Ciclo I",null,null,"Ciclo II"]
[null,null,null,"EDADES",null,null,0,1,2,3,4,"5 y +",null,null," Sí",null,null," No  "]
[null,null,null,"Turno mañana"]
[null,null,null,null,null,null,null,null,null,null,null,null,null,null,null,null,"¿Está incorporado en los documentos de gestión?"]
[null,null,null,"Turno tarde"]
[null,null,null,null,null,null,null,null,null,null,null,null,null,null,null,null," Sí   ",null,null," No  "]
[]
[]
[null,null,"111. DURANTE EL 2021 ¿HA COORDINADO CON ALGUNA INSTITUCIÓN PARA REALIZAR",null,null,null,null,null,null,null,null,null,null,"114. ¿EL PRONOEI SE ENCUENTRA EN EL ÁMBITO DE ALGÚN ESTABLECIMIENTO"]
[null,null,"ACTIVIDADES RELACIONADAS A LA LUCHA CONTRA LA ANEMIA?",null,null,null,null,null,null,null,null,null,null,"DE SALUD?"]
[null,null,null,null,null,null,null,null,null,null,null,"Pase a la"]
[null,null,null,"Sí",null,"No   ",null,null,"No sabe   ",null,null,"pregunta 113",null,null," Sí",null,null," No  ",null,null,"Pase a la pregunta 116."]
[]
[null,null,"112. INDIQUE USTED, ¿CUÁLES DE LAS SIGUIENTES INSTITUCIONES ORGANIZARON ",null,null,null,null,null,null,null,null,null,null,"115. ¿EL PRONOEI REALIZA COORDINACIONES Y/O ACCIONES DE ARTICULACIÓN"]
[null,null,"ALGUNA ACTIVIDAD RELACIONADA A LA LUCHA CONTRA LA ANEMIA?",null,null,null,null,null,null,null,null,null,null,"  CON EL ESTABLECIMIENTO DE SALUD?"]
[]
[null,null,null,"Entidad que Organizó",null,null,null,{"$f":"COUNTIF(I114:J119,\"X\")","v":0}," Si","No","Fecha",null,null,null," Sí",null,null," No  "]
[null,null,null,"1. Pronoei"]
[null,null,null,"2. UGEL / DRE",null,null,null,null,null,null,null,null,null,null,null,null,"¿Qué tipo de coordinaciones y/o acciones realiza?"]
[null,null,null,"3. Establecimiento de Salud",null,null,null,null,null,null,null,null,null,null,null,null,null,null,"Salud física de estudiantes"]
[null,null,null,"4. Municipalidad",null,null,null,null,null,null,null,null,null,null,null,null,null,null,"Salud física del PEC"]
[null,null,null,"5. Organización No Gubernamental (ONG)",null,null,null,null,null,null,null,null,null,null,null,null,null,null,"Salud mental del estudiante"]
[null,null,null,"6. Otro",null,null,null,null,null,null,null,null,null,null,null,null,null,null,"Salud mental del PEC"]
[null,null,null,null,null,null,null,null,null,null,null,null,null,null,null,null,null,null,"Otro"]
[]
[null,null,"113. DURANTE EL AÑO 2020 ¿SE REALIZARON TALLERES DIRIGIDOS A LOS PADRES ",null,null,null,null,null,null,null,null,null,null,"116. DURANTE EL 2021 Y HASTA LA FECHA DE LA APLICACIÓN DEL CENSO 2022, "]
[null,null,"DE FAMILIA O APODERADOS EN EL PRONOEI?",null,null,null,null,null,null,null,null,null,null,"¿EN EL PRONOEI SE HAN REALIZADO ACCIONES PARA ATENDER LAS SITUA-"]
[null,null,null,null,null,null,null,null,null,null,null,null,null,"CIONES DE INTERRUPCIÓN DE LOS ESTUDIOS?"]
[null,null,null,"Talleres de …",null,null,null,null," Si","No","Cantidad"]
[null,null,null,null,null,null,null,{"$f":"COUNTIF(I127:J132,\"X\")","v":0},null,null,"de Talleres",null,null,null,"Sí",null,null,"¿Qué acciones se realizaron?"]
[null,null,null,"1. Aprendizajes",null,null,null,null,null,null,null,null,null,null,null,null,null,null,"Seguimiento y visitas a estud. en riesgo de abandono "]
[null,null,null,"2. Pauta de crianza",null,null,null,null,null,null,null,null,null,null,null,null,null,null,"Orientaciones sobre la continuidad en el PRONOEI"]
[null,null,null,"3. Violencia",null,null,null,null,null,null,null,null,null,null,null,null,null,null,"Flexibilización de la atención educativa en el PRONOEI"]
[null,null,null,"4. Inclusión",null,null,null,null,null,null,null,null,null,null,null,null,null,null,"Focalizar a los estudiantes en riesgo"]
[null,null,null,"5. Alimentación y hábitos de higiene",null,null,null,null,null,null,null,null,null,null,null,null,null,null,"Otro"]
[null,null,null,"6. Otro"]
[null,null,null,null,null,null,null,null,null,null,null,null,null,null," No  "]
[]
[]
[null,null,"B. TUTORÍA , ORIENTACIÓN EDUCATIVA Y CONVIVENCIA ESCOLAR"]
[null,null,"117. EN ESTE PRONOEI ¿SE DESARROLLAN PROGRAMAS QUE PROMUEVAN LA ",null,null,null,null,null,null,null,null,null,null,"120. ¿LAS NORMAS DE CONVIVENCIA ESCOLAR HAN SIDO CONSTRUIDAS CON LA"]
[null,null,"ÉTICA, INTEGRIDAD Y VALORES?",null,null,null,null,null,null,null,null,null,null,"PARTICIPACIÓN DE REPRESENTANTES DE LAS FAMILIAS DE LAS/LOS ESTUDIANTES?"]
[]
[null,null,null,"Sí",null," No  ",null,null,null,null,null,null,null,null,"Sí",null,null," No  "]
[]
[null,null,"118. EL PRONOEI, ¿CUENTA CON NORMAS DE CONVIVENCIA ESCOLAR ACTUA-",null,null,null,null,null,null,null,null,null,null,"121. ¿EL PRONOEI CUENTA CON AL MENOS UNA/UN RESPONSABLE DE CONVIVENCIA"]
[null,null,"LIZADAS PARA EL AÑO 2022?",null,null,null,null,null,null,null,null,null,null,"ESCOLAR ASIGNADO PARA EL AÑO 2022?"]
[]
[null,null,null," Sí",null," No  ",null,null,"Pase a la pregunta 122.",null,null,null,null,null,"Sí",null,null," No  "]
[]
[null,null,null,null,null,"¿Están incorporadas al reglamento interno?",null,null,null,null,null,null,null,"122. EL PRONOEI, ¿CUENTA CON UN LIBRO DE REGISTRO DE INCIDENCIAS PARA"]
[null,null,null,null,null,null,null,null,null,null,null,null,null,"EL REGISTRO DE CASOS DE VIOLENCIA ESCOLAR, EN EL MARCO DE LA LEY N° 29719?"]
[null,null,null,null,null," Sí   ",null,null," No  "]
[null,null,null,null,null,null,null,null,null,null,null,null,null,null," Sí",null,null," No  ",null,null,"Pase a la pregunta 124."]
[null,null,"119. ¿LAS NORMAS DE CONVIVENCIA ESCOLAR INCLUYEN NORMAS RELACIONADAS"]
[null,null,"A LA GESTIÓN DE BIENESTAR EN EL RETORNO A LA SEMIPRESENCIALIDAD",null,null,null,null,null,null,null,null,null,null,null,null,null,"¿El libro de registro se encuentra en un lugar visible?"]
[null,null,"O PRESENCIALIDAD?"]
[null,null,null,null,null,null,null,null,null,null,null,null,null,null,null,null," Sí   ",null,null," No  "]
[null,null,null,"Sí",null," No  "]
[]
[]
[null,null,"123. EN EL AÑO 2021, ¿SE HIZO USO DEL LIBRO DE REGISTRO DE INCIDENCIAS?",null,null,null,null,null,null,null,null,null,null,"128. ¿USTED HA RECURRIDO A LA UGEL/DRE SOLICITANDO ORIENTACIONES PARA"]
[null,null,null,null,null,null,null,null,null,null,null,null,null,"MEJORAR LA CONVIVENCIA EN SU PRONOEI?"]
[null,null,null,"Sí",null,"No  "]
[null,null,null,null,null,null,null,null,null,null,null,null,null,null," Sí",null,null," No  "]
[null,null,null,null,null,"¿Cuántas incidencias se registraron en el año 2021?"]
[null,null,null,null,null,null,null,null,null,null,null,null,null,null,null,null,"¿Usted ha recibido alguna información y/o capacitación?"]
[]
[null,null,null,null,null,"Anote la fecha de la última incidencia registrada en el año",null,null,null,null,null,null,null,null,null,null,null," Sí   ",null," No  "]
[null,null,null,null,null,null,null,"DÍA","MES","AÑO"]
[null,null,null,null,null,null,null,null,null,null,null,null,null,"129. ¿EL PRONOEI CUENTA CON UN MAPA O DIRECTORIO DE ALIADOS ESTRATÉ-"]
[null,null,null,null,null,null,null,null,null,null,null,null,null,"GICOS PARA LA PREVENCIÓN Y ATENCIÓN DE CASOS DE VIOLENCIA ESCOLAR?"]
[null,null,"124. EL PRONOEI, ¿REALIZA ACTIVIDADES PARA UNA CONVIVENCIA ESCOLAR"]
[null,null,"DEMOCRÁTICA ?",null,null,null,null,null,null,null,null,null,null,null,"Sí",null,null," No  ",null,null,"Pase a la pregunta 131."]
[]
[null,null,null," Sí",null," No  ",null,null,null,null,null,null,null,null,null,null,"Indique quiénes lo conforman:"]
[null,null,null,null,null,null,null,null,null,null,null,null,null,null,null,null,"DEMUNA"]
[null,null,null,null,null,"¿Cuenta con medios de verificación?",null,null,null,null,null,null,null,null,null,null,"Defensoría del pueblo"]
[null,null,null,null,null,null,null,null,null,null,null,null,null,null,null,null,"Centro de emergencia Mujer (CEM)"]
[null,null,null,null,null," Sí   ",null,null," No  ",null,null,null,null,null,null,null,"Centro o posta de salud"]
[null,null,null,null,null,null,null,null,null,null,null,null,null,null,null,null,"Iglesia"]
[null,null,null,null,null,null,null,"¿Con que medios de verificación cuenta?",null,null,null,null,null,null,null,null,"Comisaría"]
[null,null,null,null,null,null,null,null,null,null,null,null,null,null,null,null,"Otro"]
[null,null,null,null,null,null,null,"Informe de actividades"]
[null,null,null,null,null,null,null,"Fotografías",null,null,null,null,null,"130. ¿EL PRONOEI HA REALIZADO ALGUNA ACTIVIDAD COORDINADA CON"]
[null,null,null,null,null,null,null,"Videos",null,null,null,null,null,"ALGUNO DE LOS ALIADOS ESTRATÉGICOS?"]
[null,null,null,null,null,null,null,"Otro"]
[null,null,null,null,null,null,null,null,null,null,null,null,null,null," Sí",null,null," No  "]
[null,null,"125. EL PRONOEI, ¿REALIZA ACTIVIDADES PARA LA PREVENCIÓN DE LA VIOLENCIA "]
[null,null,"CONTRA NIÑAS, NIÑOS Y ADOLESCENTES?",null,null,null,null,null,null,null,null,null,null,"131. ESTE PRONOEI, ¿SE HA BENEFICIADO CON ALGUNA ACCIÓN DE"]
[null,null,null,null,null,null,null,null,null,null,null,null,null,"VOLUNTARIADO DURANTE ESTE PRIMER/SEGUNDO SEMESTRE DEL AÑO?"]
[null,null,null," Sí",null," No  ",null,null,"Pase a la pregunta 127."]
[null,null,null,null,null,null,null,null,null,null,null,null,null,null," Sí",null,null," No  ",null,null,"Pase a la pregunta 133."]
[null,null,null,null,null,"¿Cuenta con medios de verificación?"]
[null,null,null,null,null,null,null,null,null,null,null,null,null,"132. SELECCIONE EL O LOS ASPECTOS EN QUE APORTARON LAS ACCIONES DE"]
[null,null,null,null,null," Sí   ",null,null," No  ",null,null,null,null,"VOLUNTARIADO IMPLEMENTADAS EN ESTE PRONOEI E INDIQUE ¿CUÁL DE ELLAS "]
[null,null,null,null,null,null,null,null,null,null,null,null,null,"APORTÓ MÁS EN EL APRENDIZAJE DE LAS/LOS ESTUDIANTES?"]
[null,null,null,null,null,null,null,"¿Con que medios de verificación cuenta?"]
[null,null,null,null,null,null,null,null,null,null,null,null,null,null,"ASPECTOS EN LOS QUE APORTARON",null,null,null,null,null,"¿Aportaron en",null,"¿Cuál aporto más en el aprendizaje de los estudiantes?"]
[null,null,null,null,null,null,null,"Informe de actividades",null,null,null,null,null,null,"LAS ACCIONES DE VOLUNTARIADO",null,null,null,null,null,"este aspecto?"]
[null,null,null,null,null,null,null,"Fotografías",null,null,null,null,null,null,"IMPLEMENTADAS EN EL PRONOEI",null,null,null,null,null," Si"," No"]
[null,null,null,null,null,null,null,"Videos",null,null,null,null,null,null,"Condiciones para el retorno estudiante"]
[null,null,null,null,null,null,null,"Otro",null,null,null,null,null,null,"Recuperación verano 2022"]
[null,null,null,null,null,null,null,null,null,null,null,null,null,null,"Consolidación de los aprendizajes de los estudiantes"]
[null,null,"126. ¿CUÁLES SON LAS ACTIVIDADES QUE REALIZA ESTE PRONOEI, PARA LA ",null,null,null,null,null,null,null,null,null,null,null,"Matrícula escolar"]
[null,null,"PREVENCIÓN DE LA VIOLENCIA CONTRA NIÑAS, NIÑOS Y ADOLESCENTES?",null,null,null,null,null,null,null,null,null,null,null,"Identificación de estudiantes en situación de riesgo .."]
[null,null,null,null,null,null,null,null,null,null,null,null,null,null,"Otro"]
[null,null,null,null,"Gestión de talleres o reuniones con estudiantes."]
[null,null,null,null,"Capacitación a docentes para prevenir y/o atender casos de riesgo.",null,null,null,null,null,null,null,null,"133. EL PRONOEI QUE DIRIGE, ¿DURANTE EL PRESENTE AÑO HA RECIBIDO O "]
[null,null,null,null,"Envío de orientaciones a apoderados/as.",null,null,null,null,null,null,null,null,"VIENE RECIBIENDO APOYO DE ALGUNA EMPRESA PRIVADA O DE ALGUNA ONG EN"]
[null,null,null,null,"Gestión de talleres o reuniones con apoderados/as.",null,null,null,null,null,null,null,null,"TEMAS DE MEJORA DE INFRAESTRUCTURA, MOBILIARIO Y EQUIPAMIENTO?"]
[null,null,null,null,"Gestión de estrategias en conjunto con otras organizaciones."]
[null,null,null,null,"Monitoreo de situación emocional y familiar de estudiantes.",null,null,null,null,null,null,null,null,null," Sí",null,null," No  ",null,null,"Pase a la pregunta 135."]
[null,null,null,null,"Otro"]
[null,null,null,null,null,null,null,null,null,null,null,null,null,"134. INDIQUE EL TIPO DE APOYO QUE HA RECIBIDO DE LA EMPRESA PRIVADA U "]
[null,null,null,null,null,null,null,null,null,null,null,null,null,"ONG MENCIONADA EN SU RESPUESTA ANTERIOR"]
[null,null,"127. ESTE PRONOEI, ¿RECIBE ASISTENCIA TÉCNICA PARA LA PROMOCIÓN DE LA"]
[null,null,"CONVIVENCIA ESCOLAR, LA PREVENCIÓN Y ATENCIÓN DE LA VIOLENCIA ESCOLAR?",null,null,null,null,null,null,null,null,null,null,null,null,null,"Infraestructura"]
[null,null,null,null,null,null,null,null,null,null,null,null,null,null,null,null,"Mobiliario"]
[null,null,null,"Sí",null," No  ",null,null,null,null,null,null,null,null,null,null,"Equipamiento"]
[null,null,null,null,null,null,null,null,null,null,null,null,null,null,null,null,"Otros"]
[]
[]
[null,null,"C. ACOMPAÑAMIENTO Y SOPORTE PEDAGÓGICO"]
[null,null,"135. DESDE EL INICIO DEL AÑO ESCOLAR 2022 HASTA LA FECHA DE REPORTE DEL",null,null,null,null,null,null,null,null,null,null,"138. DURANTE EL AÑO 2021, ¿SE REALIZÓ EL INFORME DEL PROGRESO DE LOS"]
[null,null,"CENSO EDUCATIVO EL PRONOEI, ¿HA RECIBIDO COMUNICACIÓN O PARTICIPACIÓN",null,null,null,null,null,null,null,null,null,null,"ESTUDIANTES A LOS PADRES DE FAMILIA?"]
[null,null,"PRESENCIAL O VIRTUAL/REMOTA DEL ESPECIALISTA PEDAGÓGICO DE LA UGEL,"]
[null,null,"CON LA FINALIDAD DE BRINDAR ASISTENCIA TÉCNICA?",null,null,null,null,null,null,null,null,null,null,null,"Sí",null,null,null,"¿Cuántas veces?"]
[]
[null,null,null,"Sí",null,null,"¿Cuántas veces?",null,null,null,null,null,null,null,"No",null,null,null,"Pase a la pregunta 140."]
[null,null,null,null,null,null,null,"Presencial:"]
[null,null,null,null,null,null,null,"Virtual/Remota:",null,null,null,null,null,"139. ¿CÓMO SE REALIZÓ EL INFORME DEL PROGRESO DE LOS ESTUDIANTES A LOS"]
[null,null,null,null,null,null,null,null,null,null,null,null,null,"PADRES DE FAMILIA EN EL AÑO 2021?"]
[null,null,null," No  "]
[null,null,null,null,null,null,null,null,null,null,null,null,null,null,null,null,"Individual - (Informe de cada estudiante a cada PPFF)"]
[null,null,"136. EL PRONOEI, ¿DESARROLLA LAS SIGUIENTES ESTRATEGIAS DE ACOMPAÑAMIENTO?",null,null,null,null,null,null,null,null,null,null,null,null,null,"Pequeños grupos - (Informe en grupos de 2 hasta 10 estudiantes)"]
[null,null,null,null,null,null,null,null,null,null,null,null,null,null,null,null,"Grupal - (Informe en grupos de 11 a más estudiantes)"]
[null,null,null,null,null,null,null,null,null,"¿Cuántos?",null,null,null,null,null,null,"Otros"]
[null,null,null,null,null,null,null,null,null,null,"de 1 a 4 por área"]
[null,null,null,null," Visita en aula",null,null,null,null,null,"de 4 a 8 por área",null,null,"140. DURANTE EL PRESENTE AÑO, ¿HA RECIBIDO LA VISITA DEL PERSONAL O"]
[null,null,null,null," Grupos de Interaprendizaje (GIA)",null,null,null,null,null,"Más de 8 por área",null,null,"MONITOR DE SEMÁFORO ESCUELA DEL MINEDU PARA EL RECOJO DE INFORMACIÓN"]
[null,null,null,null," Talleres",null,null,null,null,null,null,null,null,"EN SU PRONOEI?"]
[null,null,null,null," Otros"]
[null,null,null,null,null,null,null,null,null,null,null,null,null,null," Sí",null,null," No  "]
[null,null,"137. EL PRONOEI, ¿REALIZA ACTIVIDADES CON FAMILIAS Y COMUNIDAD QUE"]
[null,null,"AYUDEN A LA PROMOCIÓN DE UN AMBIENTE INSTITUCIONAL FAVORABLE ",null,null,null,null,null,null,null,null,null,null,null,null,null,null,"¿En qué mes o meses recibió la(s) visita(s)?"]
[null,null,"PARA LA ATENCIÓN DE LA DIVERSIDAD?"]
[null,null,null,null,null,null,null,null,null,null,null,null,null,null,null,null,null,null,"Marzo",null,null,"Setiembre"]
[null,null,null," Sí",null," No  ",null,null,null,null,null,null,null,null,null,null,null,null,"Abril",null,null,"Octubre"]
[null,null,null,null,null,null,null,null,null,null,null,null,null,null,null,null,null,null,"Mayo",null,null,"Noviembre"]
[null,null,null,null,null,"¿Qué actividades realiza?",null,null,null,null,null,null,null,null,null,null,null,null,"Junio",null,null,"Diciembre"]
[null,null,null,null,null,null,null,null,null,null,null,null,null,null,null,null,null,null,"Julio"]
[null,null,null,null,null,"Acompañamiento en el proceso de aprendizaje",null,null,null,null,null,null,null,null,null,null,null,null,"Agosto"]
[null,null,null,null,null,"Actividades que fortalecen las competencias parentales"]
[null,null,null,null,null,"Vínculos afectivos con hijos e hijas",null,null,null,null,null,null,null,null,null,null,null,"Durante la visita, el personal o monitor de Semáforo"]
[null,null,null,null,null,"Jornadas con madres y padres",null,null,null,null,null,null,null,null,null,null,null,"Escuela del MINEDU:"]
[null,null,null,null,null,"Otros",null,null,null,null,null,null,null,null,null,null,null,null,"Ingresó al local educativo"]
[null,null,null,null,null,null,null,null,null,null,null,null,null,null,null,null,null,null,"Visitó las aulas del local educativo"]
[null,null,null,null,null,null,null,null,null,null,null,null,null,null,null,null,null,null,"Se entrevistó con el director o persona encargada"]
[null,null,null,null,null,null,null,null,null,null,null,null,null,null,null,null,null,null,"Se entrevistó con algún PEC"]
[]
[]
[null,null,"D. SOBRE LA BASE DEL CENSO DE POBLACIÓN Y VIVIENDA 2017 DEL INEI"]
[null,null,"141. SEGÚN LAS COSTUMBRES Y EL ORIGEN FAMILIAR, ¿USTED CONSIDERA "]
[null,null,"QUE SU PRONOEI CUENTA CON ESTUDIANTES PERTENECIENTES A LOS",null,null,null,null,null,null,null,null,null,null,null,"SOLO SI MARCÓ \"SI\" EN DOS O MÁS ALTERNATIVAS EN LA\nPREGUNTA ANTERIOR, RESPONDA:"]
[null,null,"SIGUIENTES GRUPOS ÉTNICOS?"]
[]
[null,null,null,"COD.","GRUPO ETNICO",null,null,null,null,null,{"$f":"COUNTIF(L265:L273,\"SI\")+COUNTIF(L265:L273,\"NO\")","v":0}," SI - NO"]
[null,null,null,1,"Quechua"]
[null,null,null,2,"Aimara",null,null,null,null,null,null,null,null,"142. ¿EXISTE UN GRUPO QUE TENGA MAYOR CANTIDAD DE ESTUDIANTES?"]
[null,null,null,3,"Nativo o indígena de la Amazonía"]
[null,null,null,4,"Perteneciente o parte de otro pueblo indígena u originario"]
[null,null,null,5,"Negro moreno, zambo, mulato/Pueblo afroperuano",null,null,null,null,null,null,null,null,null,"Sí",null,null,null,null,"Código"]
[null,null,null,6,"Blanco",null,null,null,null,null,null,null,null,null,null,null,null,null,"Indique el grupo étnico en el que identifica mayor cantidad de estudiantes utilizando el COD. seleccionado en la pregunta 141."]
[null,null,null,7,"Mestizo",null,null,null,null,null,null,null,null,null,"No"]
[null,null,null,8,"Asiático peruano"]
[null,null,null,9,"Otro  especifique"]
[]
[]
[null,null,"E. CARACTERÍSTICAS DE LA ENSEÑANZA EN CONTEXTOS BILINGÜES (SOLO PARA PRONOEI DE GESTIÓN PÚBLICA)"]
[null,null,"143. ¿ESTE PRONOEI ESTÁ RECONOCIDO COMO EIB?",null,null,null,null,null,null,null,null,null,null,"146. ¿USTED CONOCE SI EN LA COMUNIDAD DONDE SE ENCUENTRA EL PRONOEI,"]
[null,null,null,null,null,null,null,null,null,null,null,null,null,"LOS PADRES DE FAMILIA, OTROS ADULTOS Y/O ANCIANOS y ANCIANAS"]
[null,null,null,null,null,"EIB de Fortalecimiento",null,null,null,null,null,null,null,"HABLAN UNA LENGUA ORIGINARIA?"]
[{"$f":"CONCATENATE(J280,J281)","v":""},null,null,"Sí",null,"EIB de Revitalización"]
[null,null,null,null,null,"EIB en Ámbitos Urbano",null,null,null,null,null,null,null,null,"Sí",null,null,null,null,"¿Qué lengua originaria?  "]
[]
[null,null,null,"No",null,null,null," Pase a la pregunta 146",null,null,null,null,null,null,"No"]
[]
[null,null,"SOLO SI ES EIB DE FORTALECIMIENTO, RESPONDA:"]
[null,null,"144. ¿ESTE PRONOEI OFRECE ENSEÑANZA DEL CASTELLANO COMO SEGUNDA",null,null,null,null,null,null,null,null,null,null,"147. ¿LOS ESTUDIANTES DE ESTE PRONOEI HABLAN UNA LENGUA ORIGINARIA?"]
[null,null,"LENGUA?"]
[]
[null,null,null," Si",null,null,null,null," No",null,null,null,null,null,"Sí"]
[null,null,null,null,null,null,null,null,null,null,null,null,null,null,null,null,"Todos",null,null,null,"¿Qué lengua originaria?"]
[null,null,"SOLO SI ES EIB DE REVITALIZACIÓN O EIB EN ÁMBITOS URBANOS, RESPONDA:",null,null,null,null,null,null,null,null,null,null,null,null,null,"La mayoría"]
[null,null,"145. ¿ESTE PRONOEI OFRECE ENSEÑANZA DE LA LENGUA ORIGINARIA COMO",null,null,null,null,null,null,null,null,null,null,null,null,null,"Pocos"]
[null,null,"SEGUNDA LENGUA?",null,null,null,null,null,null,null,null,null,null,null,null,null,null,null,{"$f":"CONCATENATE(S290,S291,S292)","v":""}]
[null,null,null,null,null,null,null,null,null,null,null,null,null,null,"No",null,null,null,null,null,"Anote el código según la"]
[null,null,null," Si",null,null,null,null," No",null,null,null,null,null,null,null,null,null,null,null,"página 10 de esta cédula"]
[]
[]
[null,null,"F. ATENCIÓN A LA DIVERSIDAD Y SOBRE EL SERVICIO DE APOYO Y ASESORAMIENTO A LAS NECESIDADES EDUCATIVAS ESPECIALES - SAANEE"]
[null,null,"148. ESTE PRONOEI, ¿CUENTA CON UN ESPECIALISTA DEL EQUIPO DE SERVICIO",null,null,null,null,null,null,null,null,null,null,"151. ¿DURANTE LOS ÚLTIMOS 5 AÑOS EL PERSONAL DE ESTE PRONOEI, HA"]
[null,null,"DE APOYO Y ASESORAMIENTO DE LAS NECESIDADES EDUCATIVAS ",null,null,null,null,null,null,null,null,null,null,"RECIBIDO CAPACITACIÓN EN TEMAS DE EDUCACIÓN INCLUSIVA O ATENCIÓN"]
[null,null,"ESPECIALES (SAANEE) QUE LE HAYA SIDO ASIGNADO?",null,null,null,null,null,null,null,null,null,null,"A LA DIVERSIDAD DE PARTE DE ESPECIALISTAS DE DRE/GRE Y/O UGEL, O"]
[null,null,null,null,null,null,null,null,null,null,null,null,null,"ALGUNA OTRA INSTITUCIÓN?"]
[null,null,null,"Sí",null," No  "]
[null,null,null,null,null,null,null,null,null,null,null,null,null,null," Sí",null,null," No  "]
[null,null,"149. DURANTE EL PRESENTE AÑO, ESTE PRONOEI ¿HA RECIBIDO ASISTENCIA"]
[null,null,"Y ORIENTACIÓN PARA LA ATENCIÓN EDUCATIVA DE ESTUDIANTES CON",null,null,null,null,null,null,null,null,null,null,null,null,null,"¿Qué instancia o institución brindó la capacitación?"]
[null,null,"DISCAPACIDAD, DE PARTE DEL EQUIPO DE SERVICIO DE APOYO Y"]
[null,null,"ASESORAMIENTO DE LAS NECESIDADES EDUCATIVAS ESPECIALES (SAANEE)?",null,null,null,null,null,null,null,null,null,null,null,null,null,"Minedu"]
[null,null,null,null,null,null,null,null,null,null,null,null,null,null,null,null,"DRE/GRE"]
[null,null,null," Sí",null," No  ",null,null,null,null,null,null,null,null,null,null,"UGEL"]
[null,null,null,null,null,null,null,null,null,null,null,null,null,null,null,null,"Entidad privada, como auspicio"]
[null,null,null,null,null,"¿Cuántas asesorías (presenciales o virtuales) ha brindado",null,null,null,null,null,null,null,null,null,null,"Organizaciones sin fines de lucro/ONG"]
[null,null,null,null,null,"el equipo SAANEE a este PRONOEI en el 2022?",null,null,null,null,null,null,null,null,null,null,"Inversión propia"]
[null,null,null,null,null,null,null,null,null,null,null,null,null,null,null,null,"Otro"]
[null,null,null,null,null,"¿Cuántas?"]
[null,null,null,null,null,null,null,null,null,null,null,null,null,"152. ¿QUÉ ESTRATEGIAS FORMATIVAS VIRTUALES PRIORIZARÍA SOBRE TEMAS"]
[null,null,"150. ¿EL PRONOEI HA RECIBIDO ASISTENCIA Y ORIENTACION PARA LA ATENCION ",null,null,null,null,null,null,null,null,null,null,"DE EDUCACIÓN INCLUSIVA O ATENCIÓN A LA DIVERSIDAD?"]
[null,null,"EDUCATIVA DE ESTUDIANTES CON DISCAPACIDAD, DE PARTE DEL SERVICIO "]
[null,null,"DE APOYO EDUCATIVO VIRTUAL (SAEV)?",null,null,null,null,null,null,null,null,null,null,null,null,null,"Curso virtual tutorado"]
[null,null,null,null,null,null,null,null,null,null,null,null,null,null,null,null,"Curso virtual autoformativo"]
[null,null,null," Sí",null," No  ",null,null,null,null,null,null,null,null,null,null,"Grupo o círculo de interaprendizaje"]
[null,null,null,null,null,null,null,null,null,null,null,null,null,null,null,null,"Comunidades profesionales de apendizaje"]
[null,null,null,null,null,"¿Cuántos estudiantes con discapacidad estan a cargo del/de la",null,null,null,null,null,null,null,null,null,null,"Asesoría personalizada"]
[null,null,null,null,null,"PEC que ha recibido asistencia y orientación del SAEV?",null,null,null,null,null,null,null,null,null,null,"Pasantia"]
[null,null,null,null,null,null,null,null,null,null,null,null,null,null,null,null,"Otros"]
[null,null,null,null,null,"¿Cuántas?"]
[null,null,null,null,null,null,null,null,null,null,null,null,null,"153. ¿EL PRONOEI, CUENTA CON RESPONSABLE DE INCLUSIÓN?"]
[]
[null,null,null,null,null,null,null,null,null,null,null,null,null,null," Sí",null,null," No  "]
[]
[]
[null,null,"G. LOGÍSTICA POR COVID-19 (SOLO PARA PRONOEI DE GESTIÓN PÚBLICA)"]
[null,null,"154. ¿HA RECIBIDO EL KIT COVID-19 (MASCARILLA KN95, 02 MASCARILLAS POR ",null,null,null,null,null,null,null,null,null,null,"155. LOS ESTUDIANTES DE ESTE PRONOEI QUE ASISTEN PRESENCIALMENTE,"]
[null,null,"SEMANA) PARA EL PERSONAL QUE LABORA PRESENCIALMENTE EN EL PRONOEI?",null,null,null,null,null,null,null,null,null,null,"¿HAN RECIBIDO EL KIT COVID-19 CONFORMADO POR: MASCARILLAS TEXTILES "]
[null,null,null,null,null,null,null,null,null,null,null,null,null,"(3 MASCARILLAS POR CADA 2 MESES) O MASCARILLAS QUIRÚRGICAS "]
[null,null,null," Sí",null," No  ",null,null,null,null,null,null,null,"(1 MASCARILLA DIARIA)?"]
[]
[null,null,null,null,null,"¿Estos insumos son suficientes para asignarlos a todo el",null,null,null,null,null,null,null,null," Sí",null," No  "]
[null,null,null,null,null,"personal que labora presencialemente en el PRONOEI?"]
[null,null,null,null,null,null,null,null,null,null,null,null,null,null,null,null,"¿Estos insumos son suficientes para asignarlos a todos "]
[null,null,null,null,null," Sí   ",null,null," No  ",null,null,null,null,null,null,null,"las/los estudiantes que asiste presencialemente al PRONOEI?"]
[]
[null,null,null,null,null,null,null,null,null,null,null,null,null,null,null,null," Sí   ",null,null," No  "]
[]
[null,null,null,null,null,null,null,null,null,null,null,null,null,"156. ESTE PRONOEI, ¿CUENTA CON EL KIT DE HIGIENE PARA LAVADO DE MANOS "]
[null,null,null,null,null,null,null,null,null,null,null,null,null,"CUYA ENTREGA ES GESTIONADA POR EL MINISTERIO DE EDUCACIÓN?"]
[]
[null,null,null,null,null,null,null,null,null,null,null,null,null,null," Sí",null," No  ",null,null,"¿Por qué motivo?"]
[]
[null,null,null,null,null,null,null,null,null,null,null,null,null,null,null,null,null,null,null,null,null,"No está focalizado"]
[null,null,null,null,null,null,null,null,null,null,null,null,null,null,null,null,null,null,null,null,null,"Otro motivo"]
[]
[]
[]
[]
["SI / NO"]
["SI"]
["NO"]
[]
["Dias"]
[1]
[2]
[3]
[4]
[5]
[6]
[7]
[8]
[9]
[10]
[11]
[12]
[13]
[14]
[15]
[16]
[17]
[18]
[19]
[20]
[21]
[22]
[23]
[24]
[25]
[26]
[27]
[28]
[29]
[30]
[31]
[]
["Meses"]
["01: Enero"]
["02: Febrero"]
["03: Marzo"]
["04: Abril"]
["05: Mayo"]
["06: Junio"]
["07: Julio"]
["08: Agosto"]
["09: Septiembre"]
["10: Octubre"]
["11: Noviembre"]
["12: Diciembre"]
["01: Enero"]
["02: Febrero"]
[]
["LENGUAS ORIGINARIAS"]
["0100: Castellano"]
["0200: Achuar"]
["0300: Aimara"]
["0400: Amahuaca"]
["0500: Arabela"]
["0600: Ashaninka"]
["0610: Asheninka"]
["0700: Awajún"]
["0800: Bora"]
["0900: Kapanawa"]
["1000: Cashinahua"]
["1100: Kawki"]
["1200: Chamicuro"]
["1300: Ese eja"]
["1400: Harakbut"]
["1500: Iñapari"]
["1600: Ikitu"]
["1700: Iskonawa"]
["1800: Jaqaru"]
["1900: Kakataibo"]
["2000: Kakinte"]
["2110: Kandozi-chapra (chapra)"]
["2120: Kandozi-chapra (kandozi)"]
["2200: Kukama kukamiria"]
["2300: Madija"]
["2400: Maijiki"]
["2500: Matsés"]
["2600: Matsigenka"]
["2700: Muniche"]
["2800: Murui-muinani"]
["2900: Matsigenka-montetokunirira"]
["3000: Nomatsigenga"]
["3100: Ocaina"]
["3200: Omagua"]
["3310: Quechua amazónico (Kichwa)"]
["3321: Quechua central (Ancash)"]
["3322: Quechua central (Huánuco)"]
["3323: Quechua central (Wanka)"]
["3324: Quechua central (Pasco)"]
["3331: Quechua norteño (Cajamarca)"]
["3332: Quechua norteño (Inkawasi Kañaris)"]
["3341: Quechua sureño (Chanka)"]
["3342: Quechua sureño (Collao)"]
["3400: Resígaro"]
["3500: Secoya"]
["3600: Sharanahua"]
["3700: Shawi"]
["3800: Shipibo-Konibo"]
["3900: Shiwilu"]
["4000: Taushiro"]
["4100: Ticuna"]
["4200: Urarina"]
["4300: Wampis"]
["4400: Yagua"]
["4500: Yaminahua"]
["4600: Yanesha"]
["4700: Yine"]
["4800: Nahua"]
["LENGUA EXTRANJERA"]
["5100: Alemán"]
["5200: Inglés"]
["5300: Italiano"]
["5400: Japonés"]
["5500: Portugués"]
["5600: Ruso"]
["5700: Francés"]
["5800: Otra lengua extranjera"]

{"sheet":"C200","index":2,"n_rows":40,"n_cols":21,"rows_kept":40,"cut":false,"hidden":false,"merged":[[27,1,27,2],[23,5,23,6],[24,5,24,6],[25,5,25,6],[20,7,20,12],[22,1,22,2],[20,3,21,4],[20,5,21,6],[20,1,21,2],[33,1,35,8],[33,9,34,10],[33,11,33,18],[34,11,34,12],[34,13,34,14],[34,15,34,16],[34,17,34,18],[1,1,1,19],[2,1,2,19],[8,1,8,2],[8,3,8,16],[11,13,11,14],[11,15,11,16],[11,7,11,8],[11,17,11,18],[11,11,11,12],[10,1,11,2],[10,3,11,4],[6,1,6,20],[18,1,18,2],[12,1,12,2],[11,19,11,20],[10,5,11,6],[10,7,10,20],[11,9,11,10]]}
[""]
["","CENSO EDUCATIVO 2022"]
["","MATRÍCULA, PROMOTORES(AS) Y MATERIALES EDUCATIVOS"]
[]
[]
[]
[null,"200. MATRÍCULA Y SECCIONES  (Para PRONOEI Públicos y Privados)"]
[]
[null,"CUADRO 201.",null,"MATRÍCULA TOTAL POR EDADES, SEGÚN TURNO DE ENSEÑANZA"]
[]
[null,"VARIABLE",null,"TURNO",null,"TOTAL",null,"EDAD EN AÑOS CUMPLIDOS AL 31 DE MARZO DE 2022"]
[null,null,null,null,null,null,null,0,null,1,null,2,null,3,null,4,null,5,null,"6  y más"]
[null,"MATRÍCULA",null,null,null,"H","M","H","M","H","M","H","M","H","M","H","M","H","M","H","M"]
[null,"01",null,"TOTAL",null,{"$f":"SUM(F15:F16)","v":0},{"$f":"SUM(G15:G16)","v":0},{"$f":"SUM(H15:H16)","v":0},{"$f":"SUM(I15:I16)","v":0},{"$f":"SUM(J15:J16)","v":0},0,0,0,0,0,0,0,0,0,0,{"$f":"SUM(U15:U16)","v":0}]
[null,"02",null,"MAÑANA",null,{"$f":"H15+J15+L15+N15+P15+R15+T15","v":0},{"$f":"I15+K15+M15+O15+Q15+S15+U15","v":0}]
[null,"03",null,"TARDE",null,{"$f":"H16+J16+L16+N16+P16+R16+T16","v":0},{"$f":"I16+K16+M16+O16+Q16+S16+U16","v":0}]
[null,"Nota:","Incluya a los alumnos con algún tipo de necesidad educativa especial (NEE)."]
[]
[null,"CUADRO 202.",null,"SECCIONES POR EDADES, SEGÚN TURNO DE ENSEÑANZA"]
[]
[null,"VARIABLE",null,"TURNO",null,"TOTAL",null,"EDAD"]
[null,null,null,null,null,null,null,0,1,2,3,4,"5 y más"]
[null,"SECCIONES"]
[null,"01",null,"TOTAL",null,{"$f":"SUM(F25:F26)","v":0},null,{"$f":"SUM(H25:H26)","v":0},{"$f":"SUM(I25:I26)","v":0},{"$f":"SUM(J25:J26)","v":0},{"$f":"SUM(K25:K26)","v":0},{"$f":"SUM(L25:L26)","v":0},{"$f":"SUM(M25:M26)","v":0}]
[null,"02",null,"MAÑANA",null,{"$f":"SUM(H25:M25)","v":0}]
[null,"03",null,"TARDE",null,{"$f":"SUM(H26:M26)","v":0}]
[]
[null,"CUADRO 203.",null,"ESTUDIANTES MATRICULADOS QUE SE ENCUENTREN EN SITUACIÓN DE HOSPITALIZACIÓN AL MOMENTO DEL REPORTE DEL CENSO EDUCATIVO 2022"]
[]
[null,"ESTE PRONOEI ¿CUENTA CON AL MENOS UN ESTUDIANTE EN SITUACIÓN DE HOSPITALIZACIÓN?"]
[]
[null,"Sí",null,null,null,"No",null,null,"Pase a la sección 300."]
[]
[null,"SITUACIÓN DE HOSPITALIZACIÓN",null,null,null,null,null,null,null,"TOTAL",null,"EDAD DE ESTUDIO"]
[null,null,null,null,null,null,null,null,null,null,null,3,null,4,null,5,null,"6 y más"]
[null,null,null,null,null,null,null,null,null,"H","M","H","M","H","M","H","M","H","M"]
[null,"00",null,null,"TOTAL",null,null,null,null,{"$f":"L37+N37+P37+R37","v":0},0,{"$f":"SUM(L38:L40)","v":0},0,0,0,0,0,0,0]
[null,"01","Estudiantes en",null,"Menos de 15 días de hospitalización",null,null,null,null,0,0]
[null,"02","situación de",null,"De 15 a 30 días de hospitalización",null,null,null,null,0,0]
[null,"03","hospitalización",null,"De 30 a más días de hospitalización",null,null,null,null,0,0]

{"sheet":"C300","index":3,"n_rows":149,"n_cols":44,"rows_kept":149,"cut":false,"hidden":false,"merged":[[13,18,16,18],[13,13,16,13],[13,19,16,19],[12,26,12,27],[15,24,16,24],[15,20,15,23],[12,20,12,24],[6,6,6,17],[13,17,16,17],[1,6,1,17],[2,6,2,17],[12,10,12,11],[13,10,14,11],[13,14,16,14],[13,16,16,16],[13,12,16,12],[13,6,16,6],[13,15,16,15],[13,32,16,32],[13,25,16,25],[13,26,15,27],[14,20,14,24],[13,20,13,24],[13,28,16,28],[13,29,16,29],[13,30,16,30],[13,31,16,31]]}
[]
[null,null,null,null,null,null,"CENSO EDUCATIVO 2022"]
[null,null,null,null,null,null,"MATRÍCULA, PROMOTORES(AS) Y MATERIALES EDUCATIVOS"]
[]
["PERSONAL",{"$f":"$P$10","v":0}]
[]
["COORDINADOR",null,null,null,null,null,"300. PROMOTORES(AS) EDUCATIVOS(AS) COMUNITARIOS(AS) (Para PRONOEI Públicos y Privados)"]
["PROMOTOR",null,null,null,null,null,"Utilice las tablas de código disponibles en la cédula borrador."]
[]
["GESTIÓN",{"$f":"IF(OR('C100'!J47=\"X\",'C100'!P47=\"X\"),1,IF('C100'!U47=\"X\",3,\"\"))","v":3},null,null,null,null,null,null,null,null,"Anote el total de Promotoras(es) educativa comunitaria"]
[]
["LENGUA ORIGINARIA",{"$f":"COUNTIF(P18:P22,\"SI\")","v":0}]
[null,null,null,null,null,null,null,301.10000000000002,301.2,301.3,302,null,303,304,305,306,307,308,309,310,311,null,null,null,null,312,313,null,314,315,315.10000000000002,315.2,315.3]
[null,null,null,null,null,null,"Nº",null,null,null,"Documento de identidad",null,"Edad","Sexo","Lengua\nmaterna","¿Domina una lengua\noriginaria?\nSí - No","Lengua originaria\nque domina ","Máximo nivel\neducativo\nalcanzado","¿En qué tipo de Institución\nobtuvo su formación pedagógica?","Especialidad pedagógica o técnica que ha estudiado","¿ Ha sido capacitado en el uso de los materiales educativos?",null,null,null,null,"Vive en la comunidad donde funciona el PRONOEI","Tiempo de experiecia como PEC",null,"Nro. horas de capacitación recibidas en 2021","¿Atiende a estudiantes con NEE asociadas a discapacidad?","¿Presenta alguna discapacidad?","Solo si respondió SI en la pregunta 315.1 ¿Cúal es el tipo de discapacidad?","¿Ha recibido asistencia y orientación para la atención educativa de estudiantes con discapacidad de parte del equipo de (SAEV)?"]
[null,null,null,null,null,null,null,null,null,null,null,null,null,null,null,null,null,null,null,null,"Marque con una “X”, según corresponda"]
["302.1 Tipo de documento de Identidad","Exp1","Exp2","Exp3","Exp4",null,null,"Apellido Paterno","Apellido Materno","Nombres",302.10000000000002,302.2,null,null,null,null,null,null,null,null,"SI",null,null,null,"NO"]
["01 : DNI","Corr","Tnivel","Duplex","Fmt",null,null,null,null,null,"Tipo","Número",null,null,null,null,null,null,null,null,"MINEDU","DRE/UGEL","OTRO"," Especificar",null,null,"Años","Meses"]
["02 : Carnet Ext.",1,{"$f":"IF($R18=\"\",0,IF(VALUE(LEFT($R18,2))<4,1,IF(OR(LEFT($R18,2)=\"04\",LEFT($R18,2)=\"05\",LEFT($R18,2)=\"06\" ),2,IF(VALUE(LEFT($R18,2))>6,3,9))))","v":0},{"$f":"IF(K18<>\"\",COUNTIF($K$18:$K$22,$K18),0)","v":0},{"$f":"IF(G18<>\"\",1,0)","v":0},null,{"$f":"IF(B18<=$P$10,B18,\"\")","v":""},null,null,null,null,null,null,null,null,null,null,null,null,null,null,null,null,null,null,null,null,null,null,null,null,null,null,"","","","","","","","","","",""]
["03 : Pasaporte",2,{"$f":"IF($R19=\"\",0,IF(VALUE(LEFT($R19,2))<4,1,IF(OR(LEFT($R19,2)=\"04\",LEFT($R19,2)=\"05\",LEFT($R19,2)=\"06\" ),2,IF(VALUE(LEFT($R19,2))>6,3,9))))","v":0},{"$f":"IF(K19<>\"\",COUNTIF($K$18:$K$22,$K19),0)","v":0},{"$f":"IF(G19<>\"\",1,0)","v":0},null,{"$f":"IF(B19<=$P$10,B19,\"\")","v":""},null,null,null,null,null,null,null,null,null,null,null,null,null,null,null,null,null,null,null,null,null,null,null,null,null,null,"","","","","","","","","","",""]
[null,3,{"$f":"IF($R20=\"\",0,IF(VALUE(LEFT($R20,2))<4,1,IF(OR(LEFT($R20,2)=\"04\",LEFT($R20,2)=\"05\",LEFT($R20,2)=\"06\" ),2,IF(VALUE(LEFT($R20,2))>6,3,9))))","v":0},{"$f":"IF(K20<>\"\",COUNTIF($K$18:$K$22,$K20),0)","v":0},{"$f":"IF(G20<>\"\",1,0)","v":0},null,{"$f":"IF(B20<=$P$10,B20,\"\")","v":""},null,null,null,null,null,null,null,null,null,null,null,null,null,null,null,null,null,null,null,null,null,null,null,null,null,null,"","","","","","","","","","",""]
["304. Sexo",4,{"$f":"IF($R21=\"\",0,IF(VALUE(LEFT($R21,2))<4,1,IF(OR(LEFT($R21,2)=\"04\",LEFT($R21,2)=\"05\",LEFT($R21,2)=\"06\" ),2,IF(VALUE(LEFT($R21,2))>6,3,9))))","v":0},{"$f":"IF(K21<>\"\",COUNTIF($K$18:$K$22,$K21),0)","v":0},{"$f":"IF(G21<>\"\",1,0)","v":0},null,{"$f":"IF(B21<=$P$10,B21,\"\")","v":""},null,null,null,null,null,null,null,null,null,null,null,null,null,null,null,null,null,null,null,null,null,null,null,null,null,null,"","","","","","","","","","",""]
["Hombre",5,{"$f":"IF($R22=\"\",0,IF(VALUE(LEFT($R22,2))<4,1,IF(OR(LEFT($R22,2)=\"04\",LEFT($R22,2)=\"05\",LEFT($R22,2)=\"06\" ),2,IF(VALUE(LEFT($R22,2))>6,3,9))))","v":0},{"$f":"IF(K22<>\"\",COUNTIF($K$18:$K$22,$K22),0)","v":0},{"$f":"IF(G22<>\"\",1,0)","v":0},null,{"$f":"IF(B22<=P$10,B22,\"\")","v":""},null,null,null,null,null,null,null,null,null,null,null,null,null,null,null,null,null,null,null,null,null,null,null,null,null,null,"","","","","","","","","","",""]
["Mujer",null,null,null,null,null,null,null,null,null,"",null,"","","","","","","","","","","","","","","","",null,null,null,null,"","","","","","","","","","",""]
[null,null,null,null,null,null,null,null,null,"",null,null,"","","","","","","","","","","","","","","","",null,null,null,null,"","","","","","","","","","","",""]
["305. Lengua Materna",null,null,null,null,null,null,null,null,"",null,null,"","","","","","","","","","","","","","","","",null,null,null,null,"","","","","","","","","","","",""]
["0100: Castellano",null,null,null,null,null,null,null,null,"",null,null,"","","","","","","","","","","","","","","","",null,null,null,null,"","","","","","","","","","","",""]
["0200: Achuar",null,null,null,null,null,null,null,null,"",null,null,"","","","","","","","","","","","","","","","",null,null,null,null,"","","","","","","","","","","",""]
["0300: Aimara"]
["0400: Amahuaca"]
["0500: Arabela"]
["0600: Ashaninka"]
["0610: Asheninka"]
["0700: Awajún"]
["0800: Bora"]
["0900: Kapanawa"]
["1000: Cashinahua"]
["1100: Kawki"]
["1200: Chamicuro"]
["1300: Ese eja"]
["1400: Harakbut"]
["1500: Iñapari"]
["1600: Ikitu"]
["1700: Iskonawa"]
["1800: Jaqaru"]
["1900: Kakataibo"]
["2000: Kakinte"]
["2110: Kandozi-chapra (chapra)"]
["2120: Kandozi-chapra (kandozi)"]
["2200: Kukama kukamiria"]
["2300: Madija"]
["2400: Maijiki"]
["2500: Matsés"]
["2600: Matsigenka"]
["2700: Muniche"]
["2800: Murui-muinani"]
["2900: Matsigenka-montetokunirira"]
["3000: Nomatsigenga"]
["3100: Ocaina"]
["3200: Omagua"]
["3310: Quechua amazónico (Kichwa)"]
["3321: Quechua central (Ancash)"]
["3322: Quechua central (Huánuco)"]
["3323: Quechua central (Wanka)"]
["3324: Quechua central (Pasco)"]
["3331: Quechua norteño (Cajamarca)"]
["3332: Quechua norteño (Inkawasi Kañaris)"]
["3341: Quechua sureño (Chanka)"]
["3342: Quechua sureño (Collao)"]
["3400: Resígaro"]
["3500: Secoya"]
["3600: Sharanahua"]
["3700: Shawi"]
["3800: Shipibo-Konibo"]
["3900: Shiwilu"]
["4000: Taushiro"]
["4100: Ticuna"]
["4200: Urarina"]
["4300: Wampis"]
["4400: Yagua"]
["4500: Yaminahua"]
["4600: Yanesha"]
["4700: Yine"]
["4800: Nahua"]
["5100: Alemán"]
["5200: Inglés"]
["5300: Italiano"]
["5400: Japonés"]
["5500: Portugués"]
["5600: Ruso"]
["5700: Francés"]
["5800: Otra lengua extranjera"]
[]
["307. Lengua Originaria"]
["Utilice los códigos de lengua de la tabla 203"]
[]
["308. Máximo Nivel Educativo Alcanzado"]
["01: Pedag.Concluidos con título"]
["02: Pedag.Concluidos sin título"]
["03: Pedag.No concluidos"]
["04: No Pedag.Concluidos con título"]
["05: No Pedag.Concluidos sin título"]
["06: No Pedag.No concluidos"]
["07: Secundaria concluida"]
["08: Secundaria no concluida"]
["09: Primaria concluida"]
["10: Primaria no concluida"]
["11: Sin Nivel"]
[]
["309. Tipo de institución"]
["01: IESP (Público)"]
["02: IESP (Privado)"]
["03: Universidad Privada"]
["04: Universidad Pública"]
["05: Sin formación pedagógica"]
[]
["310. Especialidad pedagógica o técnica que ha estudiado"]
["01: Educación Inicial"]
["02: Educación Primaria"]
["03: Educación Secundaria"]
["04: Otros estudios pedagógicos"]
["05: Enfermería"]
["06: Secretariado"]
["07: Computación e Informática"]
["08: Otros estudios técnicos"]
[]
["311. ¿Ha sido capacitado en el uso de los materiales?"]
["Marcar según corresponda"]
[]
["312. Vive en la comunidad donde funciona el PRONOEI"]
["Responda SÍ o NO, según corresponda"]
[]
["313. Tiempo de experiencia en el PEC"]
["Anote el tiempo de experiencia en el cargo,"]
["expresado en años calendario cumplidos"]
[]
["314. Nº horas de capacitación recibidas en el año 2018"]
["Anote el número de horas de capacitación para"]
["el desarrollo de sus actividades,"]
["recibidas durante todo el año 2018"]
[]
["Opción"]
["SI"]
["NO"]
[]
["315.2 ¿Cuál es el tipo de discapacidad?"]
["01: Auditiva"]
["02: Visual"]
["03: Física o Motora"]
["04: Otras"]

{"sheet":"C316","index":4,"n_rows":30,"n_cols":31,"rows_kept":30,"cut":false,"hidden":false,"merged":[[6,5,6,16],[2,5,2,16],[1,5,1,16],[18,12,19,12],[18,5,19,5],[18,6,19,6],[18,7,19,7],[18,8,18,10],[17,8,17,10]]}
[]
[null,null,null,null,null,"CENSO EDUCATIVO 2022"]
[null,null,null,null,null,"MATRÍCULA, PROMOTORES(AS) Y MATERIALES EDUCATIVOS"]
[]
[]
[]
[null,null,null,null,null,"PROMOTORES(AS) EDUCATIVOS(AS) COMUNITARIOS(AS) QUE DOMINAN LENGUA ORIGINARIA (Solo para Programas Públicos) "]
[]
["GESTIÓN",null,null,null,null,null,"316. SEGÚN LO ANOTADO EN LA PREGUNTA 306, ¿CUENTA CON PROMOTORES(AS) EDUCATIVOS(AS"]
[null,null,null,null,null,null,"  COMUNITARIOS(AS), QUE DOMINE UNA LENGUA ORIGINARIA?"]
[null,null,null,null,null,null,"Hacer click en el botón [Verificar] para revisar los docentes que dominan una lengua originaria"]
[{"$f":"IF(OR('C100'!J47=\"X\",'C100'!P47=\"X\"),1,IF('C100'!U47=\"X\",3,\"\"))","v":3}]
[null,null,null,null,null,null,null,"Sí   ",null,null,null,null,"¿Cuántos?"]
[]
[null,null,null,null,null,null,null,"No  ",null,null,null,null,"Pase a la sección 400."]
[]
[]
[null,null,null,null,null,null,null,null,316.10000000000002,null,null,316.2,316.3,316.39999999999998,316.5,316.60000000000002,316.7]
[null,null,null,null,null,"Nº","Nº de fila registrado en la pregunta 306","Documento de Identidad","Conocimiento de\nlengua originaria",null,null,"¿Cuenta con estudios en Educación Intercultural Bilingüe?","Solo si respondió \"SÍ\"  en la pregunta 315.2 ¿Cuál fue el tipo de estudios en EIB?","¿Ha recibido capacitación en EIB?","¿El PEC enseña en lengua originaria?","¿El material recibido coincide con la lengua que enseña?","¿En la actualidad el PEC se encuentra en el Registro de Docentes Bilingües?"]
["315.3 ¿Cuál fue el tipo de estudios en EIB?","Corr","Gest","Fmt",null,null,null,null,"Habla","Lee","Escribe"," SI - NO",null," SI - NO"," SI - NO"," SI - NO"," SI - NO"]
["01: Doctorado",1,{"$f":"$A$12","v":3},{"$f":"IF(F21<>\"\",1,0)","v":0},null,{"$f":"IF(AND($B21<=$N$13,$C21=1),$B21,\"\")","v":""},null,null,null,null,null,null,null,null,null,null,null,"","","","","","","","","","","","","",""]
["02: Maestría",{"$f":"B21+1","v":2},{"$f":"$A$12","v":3},{"$f":"IF(F22<>\"\",1,0)","v":0},null,{"$f":"IF(AND($B22<=$N$13,$C22=1),$B22,\"\")","v":""},null,null,null,null,null,null,null,null,null,null,null,"","","","","","","","","","","","","",""]
["03: Segunda especialidad",{"$f":"B22+1","v":3},{"$f":"$A$12","v":3},{"$f":"IF(F23<>\"\",1,0)","v":0},null,{"$f":"IF(AND($B23<=$N$13,$C23=1),$B23,\"\")","v":""},null,null,null,null,null,null,null,null,null,null,null,"","","","","","","","","","","","","",""]
["04: Especialización",4,{"$f":"$A$12","v":3},{"$f":"IF(F24<>\"\",1,0)","v":0},null,{"$f":"IF(AND($B24<=$N$13,$C24=1),$B24,\"\")","v":""},null,null,null,null,null,null,null,null,null,null,null,"","","","","","","","","","","","","",""]
["05: Actualización",null,null,null,null,null,null,""]
["06: Otro"]
[]
[]
["SI"]
["NO"]

{"sheet":"C400","index":5,"n_rows":74,"n_cols":13,"rows_kept":74,"cut":false,"hidden":false,"merged":[[66,8,66,11],[59,8,59,11],[2,1,2,12],[1,1,1,12],[42,9,44,12],[35,1,35,13],[50,1,50,13],[6,1,6,13],[14,10,14,12],[14,2,15,4],[14,5,15,7],[16,3,17,4],[18,3,19,4],[20,3,20,4],[18,5,18,7],[19,5,19,7]]}
[]
[null,"CENSO EDUCATIVO 2022"]
[null,"MATRÍCULA, PROMOTORES(AS) Y MATERIALES EDUCATIVOS"]
[]
[]
[]
[null,"400. MATERIALES EDUCATIVOS (Solo para gestión pública)"]
[]
[null,null,"401. ¿ RECIBIÓ MATERIALES CORRESPONDIENTES A LA DOTACIÓN 2022 ?"]
[]
[null,null,null,"Sí  ",null,"No  ",null,null,"Pase a la pregunta 500"]
[]
[null,null,"402. MATERIALES EDUCAIVO"]
[]
[null,null,"BENEFICIARIO",null,null,"MATERIAL EDUCATIVO",null,null,"¿Recibio los materiales?","¿ En que fecha recibio los materiales ?","CANTIDAD DE MATERIAL"]
[null,null,null,null,null,null,null,null," SI / NO","Día/Mes/Año","Total recibido","Sobrantes","Faltantes"]
[null,null,"01","Niños y niñas de 4 y 5 años",null,"Material impreso para niños y niñas de 4 años"]
[null,null,"02",null,null,"Material impreso para niños y niñas de 5 años"]
[null,null,"03","Niños y niñas de 4 y 5 años EIB",null,"Cuaderno de trabajo y folder en lengua originaria para niños y niñas de 4 años"]
[null,null,"04",null,null,"Cuaderno de trabajo y folder en lengua originaria para niños y niñas de 5 años"]
[null,null,"15","Niños y niñas de 3, 4 y 5 años",null,"Módulo de material concreto para PRONOE"]
[null,null,null,null,null,null,null,null,{"$f":"COUNTIF(I17:I21,\"SI\")+COUNTIF(I17:I21,\"NO\")","v":0}]
[null,null,"403. EL MATERIAL IMPRESO RECIBIDO, ¿CORRESPONDE A LA LENGUA DE LOS ESTUDIANTES?"]
[]
[null,null,null,"Sí  ",null,"No  "]
[]
[null,null,"404. EL MATERIAL IMPRESO RECIBIDO, ¿SE ENCUENTRA EN EL AULA?"]
[]
[null,null,null,"Sí  ",null,"No  "]
[]
[null,null,"405. LOS MATERIALES EDUCATIVOS (IMPRESO Y CONCRETO), ¿SE ENCUENTRAN AL ALCANCE DE LOS NIÑOS Y NIÑAS?"]
[]
[null,null,null,"Sí  ",null,"No  "]
[]
[]
[null,"500. OTROS RECURSOS DISPONIBLES PARA LA ENSEÑANZA (Para Pronoei Públicas y Privadas)"]
[]
[null,null,"501. ¿QUÉ EDADES ATENDIDAS CUENTAN CON UNA BIBLIOTECA DE AULA? DETALLE EL NÚMERO DE EJEMPLARES (LIBROS QUE LA CONFORMAN)."]
[]
[null,null,null,null,"Grado Atendido",null,null,"Nº Total de Ejemplares"]
[]
[null,null,null,null,null," 0 años"]
[null,null,null,null,null," 1 año",null,null,null,"Las bibliotecas de aula están constituidas por libros, láminas y otros materiales didácticos similares, puestos al alcance de los estudiantes en el aula."]
[null,null,null,null,null," 2 años"]
[null,null,null,null,null," 3 años"]
[null,null,null,null,null," 4 años"]
[null,null,null,null,null," 5 años y más"]
[null,null,null,null,null," NINGÚNA EDAD",null,{"$f":"SUM(H42:H47)","v":0}]
[]
[]
[null,"600. ACTIVIDAD FÍSICA Y PSICOMOTROCIDAD"]
[]
[null,null,"601. DURANTE EL AÑO 2021, EN ESTE PRONOEI, ¿SE FOMENTÓ LA REALIZACIÓN DE ACTIVIDADES FÍSICAS O DEPORTE,"]
[null,null,"CON LA FINALIDAD DE PRIORIZAR EL CUIDADO DEL ESTUDIANTE Y SU BIENESTAR INTEGRAL? "]
[]
[null,null,null,"Sí",null,null,null,"Actividades de movimiento"]
[null,null,null,null,null,null,null,"Actividades de deporte"]
[null,null,null,null,null,null,null,"Actividades artístico culturales"]
[null,null,null,null,null,null,null,"Actividades complementarias de encuentro con la comunidad educativa"]
[null,null,null,"No",null,null,null,"Otras actividades"]
[]
[]
[null,null,"602. EN EL PRESENTE AÑO 2022, ¿ESTE PRONOEI TIENE PLANIFICADO LA EJECUCIÓN DE TALLERES COMPLEMENTARIOS?"]
[]
[null,null,null,"Sí",null,null,null,"Orquestando"]
[null,null,null,null,null,null,null,"Talleres deportivos recreativos"]
[null,null,null,"No",null,null,null,"Otro especificar"]
[]
[]
[null,null,"603. ¿ESTE PRONOEI CUENTA CON TALLER DE PSICOMOTROCIDAD?"]
[null,null,null,null,null,null,null,null,"Nro. de horas"]
[null,null,null,"Sí",null,null,"¿Cuántas horas?"]
[]
[null,null,null,"No"]

{"sheet":"C700","index":6,"n_rows":93,"n_cols":19,"rows_kept":93,"cut":false,"hidden":false,"merged":[[1,1,1,18],[2,1,2,18],[33,12,33,17],[34,11,40,11],[36,7,36,9],[35,18,36,18],[37,18,38,18],[39,18,40,18],[41,18,42,18],[43,18,44,18],[45,18,46,18],[41,11,48,11],[57,4,57,7],[54,18,55,18],[56,18,57,18],[47,18,48,18],[49,18,50,18],[52,18,53,18],[58,18,59,18],[49,11,51,11],[92,4,92,7],[73,14,73,17],[52,11,59,11]]}
[""]
[""]
[null,"MATRÍCULA, PROMOTORES(AS) Y MATERIALES EDUCATIVOS"]
[]
[]
[]
[null,"700. APRENDO EN CASA - MULTICANALES"]
[]
[null,"701. INDIQUE CUÁLES SON LOS MEDIOS DE COMUNICACIÓN O MULTICANALES POR LOS QUE LOS ESTUDIANTES DE ESTE NIVEL/SERVICIO EDUCATIVO,"]
[null,null,"PARTICIPAN DE LA ESTRATEGIA “APRENDO EN CASA” - AeC?"]
[null,null,null,null,null,null,null,null,null,null,"¿QUE ESTACIÓN DE RADIO USA PARA ESCUCHAR EL CONTENIDO DE AeC?"]
[null,null,null,"Radio (propia o familiar)",null,null,null,null,null,null,null,"Radio Nacional del Perú"]
[null,null,null,"Radio (autoparlantes o parlantes comunitarios)",null,null,null,null,{"$f":"CONCATENATE(C13,C12)","v":""},null,null,"Radio Regional que emite el programa"]
[null,null,null,"Televisión",null,null,null,null,null,null,null,"Radio local"]
[null,null,null,"Plataforma Web"]
[null,null,null,"WhatsApp",null,null,null,null,null,null,"LAS ACTIVIDADES PROPUESTAS EN LA WEB, ¿SON DESARROLLADAS POR LOS"]
[null,null,null,"Megáfono",null,null,null,null,null,null,"ESTUDIANTES DE LA IE?"]
[null,null,null,"Ninguno",null,"Pase a la pregunta 711.",null,null,null,null,null," Sí  ",null,null,null,"No  "]
[]
[null,"702. SOLO SI MARCO MAS DE UNA ALTERNATIVA EN LA PREGUNTA 801, INDIQUE",null,null,null,null,null,null,null,null,"706. DURANTE EL AÑO 2020, ESTE NIVEL/SERVICIO EDUCATIVO ¿COORDINA O"]
[null,null,"¿CUÁL ES LA PLATAFORMA DE MULTICANALES DE MAYOR USO POR PARTE",null,null,null,null,null,null,null,null,"ARTICULADO ALGUNA ACCIÓN CON EL GOBIERNO LOCAL PARA"]
[null,null,"DE LOS ESTUDIANTES PARA ACCEDER A LA ESTRATEGIA APRENDO EN CASA?",null,null,null,null,null,null,null,null,"INCREMENTAR EL ACCESO A LA ESTRATEGIA APRENDO EN CASA?"]
[]
[null,null,null,"Radio (propia o familiar)",null,null,null,null,null,null,null," Sí  ",null,null,null,"No  ",null,"Pase a la pregunta 708."]
[null,null,null,"Radio (autoparlantes o parlantes comunitarios)"]
[null,null,null,"Televisión"]
[null,null,null,"Plataforma Web",null,null,null,null,null,null,null,null,null,"Con Municipalidad Distrital"]
[null,null,null,"WhatsApp",null,null,null,null,null,null,null,null,null,"Con Municipalidad Provincial"]
[null,null,null,"Megáfono",null,null,null,null,null,null,null,null,null,"Con ambas"]
[]
[null,null,null,null,null,null,null,null,null,null,"707. FRECUENCIA DE LAS ACCIONES DE AYUDA A LA ESTRATEGIA APRENDO"]
[null,"703. ¿EN QUÉ LENGUA ACCEDEN MAYORITARIAMENTE LOS ESTUDIANTES DE ESTE",null,null,null,null,null,null,null,null,null,"EN CASA, POR PARTE DEL GOBIERNO LOCAL"]
[null,null,"NIVEL/SERVICIO EDUCATIVO A LA MODALIDAD DE “APRENDO EN CASA”?"]
[null,null,null,null,null,null,null,null,null,null,{"$f":"SUM(K35:K60)","v":0},"MEDIO","ACCIÓN",null,null,null,null,null,"FRECUENCIA"]
[null,null,null,"Castellano",null,null,null,null,null,null,{"$f":"IF(S35<>\"\",1,0)","v":0},"Radio","01","Contratación y convenios con emisoras radiales."]
[null,null,null,"Lengua Originaria",null,null,null,"INDIQUE LA LENGUA ORIGINARIA",null,null,{"$f":"IF(S36<>\"\",1,0)","v":0},null,"02","Uso de radio municipal para retransmitir"]
[null,null,null,"Ambas lenguas",null,null,{"$f":"CONCATENATE(C37,C36)","v":""},null,null,null,null,null,null,"la estrategia AeC."]
[null,null,null,null,null,null,null,null,null,null,{"$f":"IF(S38<>\"\",1,0)","v":0},null,"03","Uso de altoparlantes para difusión de"]
[null,null,null,null,null,null,null,null,null,null,null,null,null,"la estrategia Aec."]
[null,"704. SEÑOR(A) DIRECTOR(A), ¿SE ENCUENTRA USTED SATISFECHO CON EL CONTENIDO",null,null,null,null,null,null,null,null,{"$f":"IF(S40<>\"\",1,0)","v":0},null,"04","Instalación y repotenciación de antenas "]
[null,null,"DE “APRENDO EN CASA”?, YA SEA EN CASTELLANO O EN LENGUA ORIGINARIA",null,null,null,null,null,null,null,null,null,null,"equipos de radio."]
[null,null,null,null,null,null,null,null,null,null,{"$f":"IF(S42<>\"\",1,0)","v":0},"TV y Cable","05","Instalación, repotenciación, reparación o"]
[null,null,"En castellano",null,null,null,"En lengua originaria",null,null,null,null,null,null,"reactivación de antenas y equipos de TV."]
[null,null,null,"Satisfecho",null,null,null,"Satisfecho",null,null,{"$f":"IF(S44<>\"\",1,0)","v":0},null,"06","Uso de antena repetidora y TV municipal"]
[null,null,null,"Poco satisfecho",null,null,null,"Poco satisfecho",null,null,null,null,null,"para retransmitir la estrategia AeC."]
[null,null,null,"Insatisfecho",null,null,null,"Insatisfecho",null,null,{"$f":"IF(S46<>\"\",1,0)","v":0},null,"07","Alquiler e instalación de antenas y equipos"]
[null,null,null,"No aplica",null,null,null,"No aplica",null,null,null,null,null,"de cable (DIRECTV)."]
[null,null,null,null,null,null,null,null,null,null,{"$f":"IF(S48<>\"\",1,0)","v":0},null,"08","Trámite para licencias de funcionamiento"]
[null,null,null,null,null,null,null,null,null,null,null,null,null,"y antenas"]
[null,"705. DE LAS SIGUIENTES CARACTERÍSTICAS ¿CUÁL O CUÁLES CONSIDERA QUE",null,null,null,null,null,null,null,null,{"$f":"IF(S50<>\"\",1,0)","v":0},"Internet","09","Instalación y ampliación del servicio de"]
[null,null," SON LAS CARACTERÍSTICAS QUE DESCRIBEN MEJOR LAS VENTAJAS DE LA",null,null,null,null,null,null,null,null,null,null," internet satelital."]
[null,null," PLATAFORMA “APRENDO EN CASA”?",null,null,null,null,null,null,null,{"$f":"IF(S52<>\"\",1,0)","v":0},null,"10","Wifi gratuito en espacios públicos."]
[null,null,null,null,null,null,null,"1: Siempre",null,null,{"$f":"IF(S53<>\"\",1,0)","v":0},"Otros","11","Elaboración y difusión de recursos para"]
[null,null,null,"Es amigable",null,null,null,"2: Casi Siempre",null,null,null,null,null,"promocionar la estrategia AeC"]
[null,null,null,"Es rápido",null,null,null,"3: A Veces",null,null,{"$f":"IF(S55<>\"\",1,0)","v":0},null,"12","Fotocopiado, impresión y distribución de"]
[null,null,null,"Esta bien organizado",null,null,null,"4: Casi Nunca",null,null,null,null,null,"material educativo"]
[null,null,null,"Tiene buen contenido",null,null,null,"5: Nunca",null,null,{"$f":"IF(S57<>\"\",1,0)","v":0},null,"13","Trámite para instalar nuevas antenas y ampliar"]
[null,null,null,"Otro",null,null,null,null,null,null,null,null,null,"cobertura de las existentes (Radio, Tv y celular)"]
[null,null,null,"Ninguna de las anteriores",null,null,null,null,null,null,{"$f":"IF(S59<>\"\",1,0)","v":0},null,"14","Diálogo con actores públicos y privados para"]
[null,null,null,null,null,null,null,null,null,null,null,null,null,"ampliar la cobertura y difundir la estrategia AeC"]
[]
[]
[null,"708. LA WEB DE APRENDO EN CASA CONTIENE EXPERIENCIAS DE APRENDIZAJE",null,null,null,null,null,null,null,null,"711. SI MARCÓ LA ALTERNATIVA “NINGUNO” EN LA PREGUNTA 701, RESPONDA:"]
[null,null,"PARA EL ÁREA DE ARTE Y CULTURA ¿CUÁL FUE EL USO QUE LE DIO A DICHOS",null,null,null,null,null,null,null,null,"¿CUÁLES SON LOS MOTIVOS POR LOS QUE LOS ESTUDIANTES DE ESTE NIVEL/"]
[null,null,"RECURSOS?",null,null,null,null,null,null,null,null,"SERVICIO EDUCATIVO NO ACCEDEN A “APRENDO EN CASA”?"]
[]
[null,null,null,"Las usé sin modificarlas porque era lo que necesitaba",null,null,null,null,null,null,null,null,null,"No sabe cómo acceder"]
[null,null,null,"Decidí adaptarlas para que respondan mejor a Las necesidades de mis est.",null,null,null,null,null,null,null,null,null,"No tiene TV o la señal es mala"]
[null,null,null,"Las utilicé como un material de consulta o referencia para elaborar mis …",null,null,null,null,null,null,null,null,null,"No tiene Radio o la señal es mala"]
[null,null,null,"No Las usé porque No se adaptaban a lo que necesitaba",null,null,null,null,null,null,null,null,null,"No tiene Internet o la señal es mala"]
[null,null,null,"No Las usé porque era dificil encontrarlas en la web …",null,null,null,null,null,null,null,null,null,"Usar otros recursos educativos"]
[null,null,null,null,null,null,null,null,null,null,null,null,null,"Se dedican a otras actividades productivas de la comunidad"]
[null,"709. EN ESTE PRONOEI, ¿SE REALIZA LA RETROALIMENTACIÓN A LOS ESTUDIANTES?",null,null,null,null,null,null,null,null,null,null,null,"No encuentra útiles los recursos de Aprendo en casa"]
[null,null,null,null,null,null,null,null,null,null,null,null,null,"Otro"]
[null,null,null," Sí  ",null,"No  "]
[]
[]
[null,null,null,"Elemental"]
[null,null,null,"Descriptiva",null,null,null,null,null,null,"712. EN UN ESCENARIO DE EDUCACIÓN REMOTA ¿CUÁL ES EL MEDIO DE"]
[null,null,null,"Reflexiva por descubrimiento",null,null,null,null,null,null,null,"COMUNICACIÓN PERTINENTE, QUE SEGÚN LAS CONDICIONES DE LA ZONA,"]
[null,null,null,null,null,null,null,null,null,null,null,"PERMITEN LA COMUNICACIÓN Y APRENDIZAJE DE LOS ESTUDIANTES?."]
[null,"710. EN ESTE PRONOEI, ¿SE HA ESTABLECIDO EL MEDIO DE COMUNICACIÓN, "]
[null,null,null,null,null,null,null,null,null,null,null,null,null,"Llamadas telefónicas (celular)"]
[null,null,null,null,null,null,null,null,null,null,null,null,null,"Whatsapp (audios o vídeos)"]
[null,null,null,null,null,null,null,null,null,null,null,null,null,"Facebook - Messenger"]
[null,null,null," Sí  ",null,"No  ",null,null,null,null,null,null,null,"Videoconferencias (Meet, Zoom, Skype, etc)"]
[null,null,null,null,null,null,null,null,null,null,null,null,null,"Correo electrónico"]
[null,null,null,null,null,null,null,null,null,null,null,null,null,"Visitas domiciliarias"]
[null,null,null,"WhatsApp"]
[null,null,null,"Facebook"]
[null,null,null,"Correo electrónico"]
[null,null,null,"Llamada telefónica"]
[null,null,null,"Otros"]

{"sheet":"C800","index":7,"n_rows":188,"n_cols":22,"rows_kept":188,"cut":false,"hidden":false,"merged":[[100,20,102,22],[103,20,103,22],[104,20,104,22],[112,20,112,22],[105,20,105,22],[106,20,106,22],[107,20,107,22],[108,20,108,22],[109,20,109,22],[110,20,110,22],[111,20,111,22],[111,16,111,18],[112,16,112,18],[100,12,102,14],[100,15,102,15],[100,16,102,18],[103,16,103,18],[104,16,104,18],[105,16,105,18],[110,16,110,18],[100,19,102,19],[106,16,106,18],[107,16,107,18],[108,16,108,18],[109,16,109,18],[167,19,167,21],[164,11,164,18],[165,11,165,18],[166,11,166,18],[167,11,167,18],[166,19,166,21],[139,21,140,22],[165,19,165,21],[24,14,24,20],[24,21,24,22],[150,12,150,13],[150,21,150,22],[148,12,148,13],[148,21,148,22],[149,12,149,13],[149,21,149,22],[141,12,141,13],[141,21,141,22],[142,12,142,13],[142,21,142,22],[143,12,143,13],[146,12,146,13],[144,12,144,13],[147,12,147,13],[143,21,143,22],[144,21,144,22],[145,12,145,13],[145,21,145,22],[146,21,146,22],[147,21,147,22],[139,14,140,19],[139,20,140,20],[20,21,20,22],[32,5,32,8],[73,8,74,8],[123,5,123,9],[109,5,109,9],[34,5,34,6],[34,8,34,9],[73,7,74,7],[80,17,80,21],[64,8,64,9],[68,8,68,9],[123,17,123,21],[64,4,64,7],[68,4,68,7],[167,2,167,6],[167,7,167,10],[1,1,1,21],[2,1,2,21],[164,2,164,6],[164,7,164,10],[166,2,166,6],[166,7,166,10],[158,2,158,21],[165,2,165,6],[165,7,165,10],[16,15,16,19],[19,5,19,8],[20,14,20,20],[164,19,164,21],[139,12,140,13],[93,5,93,6],[59,5,59,9],[73,3,74,4],[73,5,74,5],[73,6,74,6],[92,5,92,8]]}
[""]
["","CENSO EDUCATIVO 2022"]
[null,"MATRÍCULA, PROMOTORES(AS) Y MATERIALES EDUCATIVOS"]
[]
[]
[]
[null,"800. DEL LOCAL DONDE FUNCIONA EL PRONOEI"]
[]
[null,"801. EL LOCAL DONDE FUNCIONA EL PRONOEI, ¿CUENTA CON LA LICENCIA",null,null,null,null,null,null,null,null,null,"807. EL AGUA QUE UTILIZA EL LOCAL PROVIENE DE"]
[null,null,"DE FUNCIONAMIENTO?",null,null,null,null,null,null,null,null,null,"(Marque con un aspa “X” solo un casillero)"]
[]
[null,null," Sí",null,"No  ",null,null,null,null,null,null,null,""," 1 - Red pública dentro del local (agua potable)."]
[null,null,null,null,null,null,null,null,null,null,null,null,""," 2 - Pilón de uso público (agua potable)"]
[null,null,null,null,null,null,null,null,null,null,null,null,""," 3 - Camión-cisterna u otro similar"]
[null,"802. ¿EL AMBIENTE ASIGNADO ES DE USO EXCLUSIVO PARA EL PRONOEI ?",null,null,null,null,null,null,null,null,null,null,""," 4 - Pozo",null,null,null,null,null,null,null,"Pase a la"]
[null,null,null,null,null,null,null,null,null,null,null,null,""," 5 - Río, acequia, manantial o similar",null,null,null,null,null,null,null,"pregunta 809"]
[null,null," Sí",null,null,null,null,null,null,null,null,null,null," 6 - Otro"]
[]
[null,null,"No",null,"¿ CON QUIÉN COMPARTE EL AMBIENTE ASIGNADO?",null,null,null,null,null,null,null,null,null,"1. Empresa proveedora del servicio de agua :"]
[null,null,null,null,null,null,null,null,null,null,null,null,null,null,"Nombre:",null,null,null,null,null,null,"Suministro:"]
[null,null,null,null,null,null,null,null,null,null,null,null,null,null,"",null,null,null,null,null,null,""]
[null,"803. TIPO DE LOCAL DONDE FUNCIONA EL PRONOEI"]
[null,null,"(Marque con un aspa “X” solo un casillero)",null,null,null,null,null,null,null,null,null,null,null,"2. Empresa proveedora del servicio de agua :"]
[null,null,null,null,null,null,null,null,null,null,null,null,null,null,"Nombre:",null,null,null,null,null,null,"Suministro:"]
[null,null,null,"1 - Local construido para uso del PRONOEI",null,null,null,null,null,null,null,null,null,null,"",null,null,null,null,null,null,""]
[null,null,null,"2 - Vivienda de la Promotora educativa comunitaria"]
[null,null,null,"3 - Otra vivienda particular, prestada al PRONOEI",null,null,null,null,null,null,null,"808. ¿TIENE EL LOCAL SERVICIO DE AGUA DE LUNES A VIERNES DURANTE TODO"]
[null,null,null,"4 - Local municipal",null,null,null,null,null,null,null,null,"EL HORARIO DE CLASES?"]
[null,null,null,"5 - Local comunal"]
[null,null,null,"6 - Local de la Parroquia o Iglesia",null,null,null,null,null,null,null,null,"Sí",null,null,null,"Pase a la pregunta 811."]
[null,null,null,"7 - Servicio educativo"]
[null,null,null,"8 - No tiene local fijo",null,null,null,null,null,null,null,null,"No  "]
[null,null,null,"9 - Otros (especificar)",null,""]
[null,null,"",null,null,null,null,null,null,null,null,"809. ¿CUENTA CON DEPÓSITOS DE ALMACENAMIENTO DE AGUA?"]
[null,null,"",null,"Código modular :  ",null,null,"Nivel :  "]
[null,null,"",null,null,null,null,null,null,null,null,null,"Sí",null,null,null,"No  ",null,null,null,"Pase a la pregunta 811."]
[null,"804. ¿CUÁL ES EL AREA DEL TERRENO DEL LOCAL?"]
[]
[null,null,null,null,"Área Total",null,":",null,null,null,null,null,null,"¿SU CAPACIDAD ES SUFICIENTE?"]
[null,null,null,null,"Área Construída",null,":"]
[null,null,null,null,null,null,null,null,null,null,null,null,null,"Sí",null,null,"No  "]
[null,null,null,null,"Área Techada del primer piso"]
[null,null,null,null,"Número de pisos",null,null,null,null,null,null,"810. ¿CUÁL ES EL ESTADO DE CONSERVACIÓN DEL DEPÓSITO DE ALMACENA-"]
[null,null,null,null,null,null,null,null,null,null,null,null," MIENTO DE AGUA? (Si tiene más de uno, refiérase a “la mayoría”)"]
[null,null,null,null,"Área sin construir",null,":"]
[null,null,null,null,null,null,null,null,null,null,null,null,{"$f":"CONCATENATE(N32,N36)","v":""},null,"En buen estado"]
[null,null,"",null,null,null,null,null,null,null,null,null,null,null,"Requiere mantenimiento"]
[null,"805. EL TERRENO DEL LOCAL DONDE FUNCIONA EL PRONOEI, ¿ESTÁ SANEADO A",null,null,null,null,null,null,null,null,null,null,null,null,"Requiere sustituirse"]
[null,null,"NOMBRE DEL MINEDU?"]
[null,null,""]
[null,null,"Sí",null,"No  ",null,null,null,null,null,null,"811. EL BAÑO O SERVICIO HIGIÉNICO QUE TIENE EL LOCAL ESTÁ CONECTADO A:"]
[]
[null,"806. EL ALUMBRADO ELÉCTRICO QUE TIENE EL LOCAL PROVIENE DE",null,null,null,null,null,null,null,null,null,null,null,"Red Pública de desagüe"]
[null,null,"(Marque con un aspa “X” solo un casillero)",null,null,null,null,null,null,null,null,null,null,"Pozo séptico (recibe tratamiento con cal, ceniza u otros desintegrantes de residuos)"]
[null,null,null,null,null,null,null,null,null,null,null,null,null,"Pozo ciego o negro (no recibe tratamiento alguno para desintegrar residuos)"]
[null,null,null," 1 - Red pública (de una empresa distribuidora de energía eléctrica).",null,null,null,null,null,null,null,null,null,"Río, acequia o canal"]
[null,null,null," 2 - Generador o motor del Municipio.",null,null,null,null,null,null,null,null,null,"No tiene"]
[null,null,null," 3 - Generador o motor del local educativo."]
[null,null,null," 4 - Generador o motor de la Comunidad."]
[null,null,null," 5 - Otro",null,null,null,null,null,null,null,"812. ¿LOS SERVICIOS HIGIÉNICOS SON DE USO EXCLUSIVO DEL PRONOEI?"]
[null,null,null," 6 - NO TIENE."]
[null,null,null,null,null,null,null,null,null,null,null,null," Sí",null,null,null," No  "]
[null,null,null,null,"1. Empresa proveedora del servicio de energía eléctrica :"]
[null,null,null,null,"Nombre:",null,null,null,"Suministro:"]
[null,null,null,null,null,null,null,null,null,null,null,null,null,"¿SON DIFERENCIADOS PARA NIÑOS Y NIÑAS?"]
[]
[null,null,null,null,"2. Empresa proveedora del servicio de energía eléctrica :",null,null,null,null,null,null,null,null," Sí   ",null,null," No  "]
[null,null,null,null,"Nombre:",null,null,null,"Suministro:"]
[]
[]
[]
[null,"813. ESPACIOS CON QUE CUENTA EL PRONOEI",null,null,null,null,null,null,null,null,null,"817. MATERIAL PREDOMINANTE EN LOS PISOS DEL ESPACIO EDUCATIVO"]
[null,null,null,null,null,null,null,null,null,null,null,null,"(Marque con un aspa “X” solo un casillero)"]
[null,null,null,"ESPACIO",null," Si"," No","CANTIDAD","M2"]
[null,null,null,null,null,null,null,null,null,null,null,null,null,"1 - Tierra"]
[null,null,"01","Aula",null,null,null,null,null,null,null,null,null,"2 - Madera (entablado)"]
[null,null,"02","Sala de psicomotrocidad",null,null,null,null,null,null,null,null,null,"3 - Cemento"]
[null,null,"03","Depósito de material educativo",null,null,null,null,null,null,null,null,null,"4 - Loseta, cerámico o similar"]
[null,null,"04","SS.HH para niños y niñas",null,null,null,null,null,null,null,null,null,"5 - Vinílico, pisopak o similar"]
[null,null,"05","SS.HH. para adultos",null,null,null,null,null,null,null,null,null,"6 - Parquet o madera pulida"]
[null,null,"06","Cocina",null,null,null,null,null,null,null,null,null,"7 -  Otro (especificar)"]
[null,null,"07","Despensa"]
[null,null,"08","Patio",null,null,null,null,null,null,null,"818. ¿EL ESPACIO EDUCATIVO CUENTA CON VENTANAS?"]
[null,null,"09","Jardín"]
[null,null,"10","Juegos recreativos",null,null,null,null,null,null,null,null,"Sí",null,null,null,"No  ",null,null,null,"Pase a la pregunta 820"]
[null,null,"11","Contenedores de basura"]
[null,null,"12","Otro",null,null,null,null,null,null,null,"819. ¿LAS VENTANAS DEL ESPACIO EDUCATIVO ESTÁN LIBRES PARA LA ILUMINA-"]
[null,null,null,null,null,{"$f":"COUNTIF(F76:G87,\"X\")","v":0},null,{"$f":"SUM(H76:H87)","v":0},{"$f":"SUM(I76:I87)","v":0},null,null,null,"CIÓN Y VENTILACIÓN?"]
[null,"814. ¿CUÁL ES EL ESTADO DE CONSERVACIÓN DEL ESPACIO EDUCATIVO QUE USA"]
[null,null,"CON MAYOR FRECUENCIA, DONDE SE REALIZAN LAS ACTIVIDADES CON LAS",null,null,null,null,null,null,null,null,null,"Sí",null,null,null,"No  "]
[null,null,"NIÑAS Y NIÑOS?"]
[null,null,null,null,null,null,null,null,null,null,null,"820. PARA EL CICLO II; EN EL ESPACIO EDUCATIVO DEL PRONOEI, ¿SE CUENTA CON"]
[null,null,null,null,"COMPONENTE","Estado de conservación",null,null,null,null,null,null,"MESA O MESAS PARA EL TRABAJO GRUPAL CON LOS NIÑOS Y NIÑAS?"]
[null,null,null,null,null,"Bueno",null,"Regular","Mal estado"]
[null,null,{"$f":"CONCATENATE(G95,H95,I95)","v":""},"01","Piso",null,null,null,null,null,null,null,"Sí",null,null,null,"No  ","",null,null,"Pase a la pregunta 822"]
[null,null,{"$f":"CONCATENATE(G96,H96,I96)","v":""},"02","Pared"]
[null,null,{"$f":"CONCATENATE(G97,H97,I97)","v":""},"03","Techo",null,null,null,null,null,null,"821. RESPECTO A LA MESA O MESAS PARA EL TRABAJO GRUPAL DE LOS NIÑOS Y"]
[null,null,null,null,null,null,null,{"$f":"COUNTIF(G95:I97,\"X\")","v":0},null,null,null,null,"NIÑAS INDIQUE SU FORMA, ESTADO DE CONSERVACIÓN Y PARA ¿CUÁNTOS "]
[null,"815. MATERIAL PREDOMINANTE EN LAS PAREDES DEL ESPACIO EDUCATIVO",null,null,null,null,null,null,null,null,null,null,"NIÑOS SIRVE CADA UNA?"]
[]
[null,null,"(Marque con un aspa “X” solo un casillero)",null,null,null,null,null,null,null,null,null,"Mobiliario",null,null,"¿Tiene?","Forma de Mesa",null,null,"¿A cuantos sirve?","Estado de conservación de la mesa?"]
[]
[null,null,null,"1 - Estera, cartón o plástico"]
[null,null,null,"2 - Eternit o fibra de concreto",null,null,null,null,null,null,null,null,"01","Mesa"]
[null,null,null,"3 - Madera",null,null,null,null,null,null,null,null,"02","Mesa"]
[null,null,null,"4 - Piedra con barro, cal o cemento",null,null,null,null,null,null,null,null,"03","Mesa"]
[null,null,null,"5 - Quincha",null,null,null,null,null,null,null,null,"04","Mesa"]
[null,null,null,"6 - Adobe o tapial",null,null,null,null,null,null,null,null,"05","Mesa"]
[null,null,null,"7 - Ladrillo o concreto",null,null,null,null,null,null,null,null,"06","Mesa"]
[null,null,null,"8 - Otro  (especificar)",null,null,null,null,null,null,null,null,"07","Mesa"]
[null,null,null,null,null,null,null,null,null,null,null,null,"08","Mesa"]
[null,"816. MATERIAL PREDOMINANTE EN LOS TECHOS DEL ESPACIO EDUCATIVO",null,null,null,null,null,null,null,null,null,null,"09","Mesa"]
[null,null,"(Marque con un aspa “X” solo un casillero)",null,null,null,null,null,null,null,null,null,"10","Mesa"]
[null,null,null,null,null,null,null,null,null,null,null,null,null,null,null,{"$f":"COUNTIF(P104:P113,\"SI\")+COUNTIF(P104:P113,\"NO\")","v":0}]
[null,null,null,"01 - Paja, hoja de palmera, etc.",null,null,null,null,null,null,null,"822. ¿LAS MESAS Y SILLAS CORRESPONDEN AL TAMAÑO DE LOS NIÑOS Y NIÑAS?"]
[null,null,null,"02 - Estera, cartón o plástico"]
[null,null,null,"03 - Lata o latón",null,null,null,null,null,null,null,null,"Sí",null,null,null,"No  "]
[null,null,null,"04 - Caña con barro"]
[null,null,null,"05 - Calamina",null,null,null,null,null,null,null,"823. ¿CUÁL ES LA FORMA DE ACCESO AL LOCAL DEL PRONOEI?"]
[null,null,null,"06 - Fibra de cemento"]
[null,null,null,"07 - Teja",null,null,null,null,null,null,null,null,null,null,"Rampa"]
[null,null,null,"08 - Madera",null,null,null,null,null,null,null,null,null,null,"Gradas"]
[null,null,null,"09 - Concreto armado",null,null,null,null,null,null,null,null,null,null,"Sin desnivel"]
[null,null,null,"10 - Otro (especificar)",null,null,null,null,null,null,null,null,null,null,"Otro"]
[]
[]
[null,"824. EL LOCAL DEL PRONOEI, ¿HA SUFRIDO DAÑOS SEVEROS COMO:",null,null,null,null,null,null,null,null,null,"827. AÑO DE EJECUCIÓN DE LA OBRA DE CONSTRUCCIÓN DEL LOCAL"]
[null,null,"RAJADURAS EN PAREDES, COLUMNAS, CORROSIÓN DE LAS COLUMNAS",null,null,null,null,null,null,null,null,null,"DONDE FUNCIONA EL PRONOEI"]
[null,null,"EXPUESTAS, ENTRE OTROS, EN LOS ÚLTIMOS 5 AÑOS POR ALGÚN"]
[null,null,"EVENTO NATURAL?",null,null,null,null,null,null,null,null,null,null,null,null,"Sabe",null,null,null,"Año :"]
[]
[null,null," Sí",null,"No  ",null,null,null,null,null,null,null,null,null,null,"No sabe"]
[]
[]
[null,null,"¿Existe algún documento (constancia, certificado o informe)"]
[null,null,"que acredite los daños severos del local del PRONOEI?",null,null,null,null,null,null,null,null,"828. ORDENE, DE ACUERDO A PRIORIDAD, LAS PRINCIPALES NECESIDADES"]
[null,null,null,null,null,null,null,null,null,null,null,null,"DE ACONDICIONAMIENTO DEL LOCAL DONDE FUNCIONA EL PRONOEI"]
[null,null," Sí",null,"No  "]
[]
[null,"825. EL LOCAL DONDE FUNCIONA EL PRONOEI, ¿HA RECIBIDO RECURSOS",null,null,null,null,null,null,null,null,null,null,"PRIORI-\nDAD",null,"ACCIONES DE ACONDICIONAMIENTO",null,null,null,null,null,"AULAS"," SERVICIOS\nHIGIÉNICOS"]
[null,null,"PARA MANTENIMIENTO?"]
[null,null,null,null,null,null,null,null,null,null,null,{"$f":"COUNTIF($M$142:$N$151,M142)","v":0},null,null,"Reparación de techos"]
[null,null," Sí",null,"No  ",null,null,null,null,null,null,0,null,null,"Reparación de muros"]
[null,null,null,null,null,null,null,null,null,null,null,0,null,null,"Reparación de puertas"]
[null,"826. TIPO DE ENTIDAD EJECUTORA DE LA OBRA DE CONSTRUCCIÓN",null,null,null,null,null,null,null,null,null,0,null,null,"Reparación de ventanas"]
[null,null,"DEL LOCAL DONDE FUNCIONA EL PRONOEI",null,null,null,null,null,null,null,null,0,null,null,"Reparación de instalaciones sanitarias"]
[null,null,null,null,null,null,null,null,null,null,null,0,null,null,"Reparación de instalaciones eléctricas"]
[null,null,null,null,"Gobierno Nacional / Proyecto especial",null,null,null,null,null,null,0,null,null,"Reparación de bienes"]
[null,null,null,null,"Gobierno Regional / Local",null,null,null,null,null,null,0,null,null,"Reposición yo adquisición de bienes"]
[null,null,null,null,"APAFA / Autoconstrucción",null,null,null,null,null,null,0,null,null,"Reparación de pisos"]
[null,null,null,null,"Entidades cooperativas / ONG ",null,null,null,null,null,null,0,null,null,"Pintado"]
[null,null,null,null,"Empresa privada",null,null,null,null,null,null,null,null,null,null,null,null,null,null,null,null,{"$f":"COUNTIF(U142:W151,\"X\")","v":0}]
[null,null,null,null,"No especifica"]
[]
[]
[null,"ANOTACIONES COMPLEMENTARIAS QUE CONSIDERE NECESARIO AGREGAR (máximo 200 caracteres)"]
[]
[]
[]
[]
[]
[null,"DATOS DEL PROFESOR COORDINADOR(A) PROMOTOR(A) Y/O RESPONSABLE (S) DEL LLENADO DE LA CÉDULA"]
[]
[]
[null,null,"NOMBRES Y APELLIDOS",null,null,null,null,"CARGO",null,null,null,"CORREO ELECTRÓNICO",null,null,null,null,null,null,null,"TELÉFONO"]
[]
[]
[]
[]
[]
[]
[]
[]
["PROF.COORDINADOR(A)"]
["PROMOTOR(A)-PEC"]
["OTRO"]
[]
[]
["Forma de la mesa"]
["1: Circular"]
["2: Cuadrada"]
["3: Rectangular"]
["4: Otro"]
[]
["Estado de conservación de la mesa?"]
["1: En buen estado"]
["2: Req. mantenimiento"]
["3: Req. sustituirse"]

{"sheet":"Enviar","index":8,"n_rows":9,"n_cols":4,"rows_kept":9,"cut":false,"hidden":false,"merged":[[0,1,0,4],[1,1,1,4]]}
[null,"CENSO EDUCATIVO 2022"]
[null,"MATRÍCULA, PROMOTORES(AS) Y MATERIALES EDUCATIVOS"]
[]
[]
[null,null,"Paso 1:","Realice el ENVÍO con su clave EOL."]
[]
[null,null,"Paso 2:","Una vez realizado el ENVÍO,  Revise su constancia de envio."]
[]
[null,null,"  ADVERTENCIA","ASEGÚRESE DE REGISTRAR TODA LA INFORMACIÓN DEL NIVEL INFORMANTE"]